Cogmind - Beta 10.2 @@@ ROGUE MODE // 2021.07.03 @ 14:10:01 // Winter2019/RPGLIKE Player: CrossedViper Result: Destroyed Tau Ceti IV! Performance ------------- Evolutions (9) 4500 Regions Visited (34) 6800 Robots Destroyed (687) 3435 Value Destroyed (36091) 36091 Prototype IDs (262) 5240 Alien Tech Used (9) 1800 Bonus (56124) 56124 TOTAL SCORE: 113990 Bonus ------- High Alert Combat Kills 7369 Follower Combat Kills 73 Aligned with FarCom 300 Met Data Miner 300 Used Data Conduit 3000 Met Warlord at Base 500 MAIN.C Attacked Warlord 500 Warlord Defense Kill 3150 Found Hidden Lab 3000 Decrypted A0 Command 3000 Pursued by Intercept 1500 Destroyed MAIN.C Guards 500 Met MAIN.C 5000 Destroyed MAIN.C Shell 5000 Destroyed MAIN.C 10000 Met Warlord at Command 2000 Met Architect 300 Started Test 138-B 500 Started Test 138-C 8000 Destroyed A4 700 Destroyed A3 800 Destroyed A2 1000 Win 3000 Friendly Fire -3368 Cogmind --------- Core Integrity 1500/1500 Matter 600/600 Energy 630/630 System Corruption 0% Temperature Cool (0) Movement Hovering (20) Location Subspace Parts ------- > --- POWER (3) -------- Improved Quantum Reactor Zero-point Reactor Zero-point Reactor > --- PROPULSION (7) --- Cooled Antigrav System Cooled Antigrav System Cooled Antigrav System Cooled Antigrav System Cooled Antigrav System Cooled Antigrav System Cooled Antigrav System > --- UTILITY (11) ----- Desublimator ST Field Compressor Experimental Targeting Computer Experimental Armor Integrity Analyzer Experimental Weapon Cycler Advanced Reaction Control System Experimental Phase Shifter 8R-AWN's Armor/TH Experimental Powered Armor Experimental Force Field > --- WEAPON (5) ------- Gatling Beam Gatling Beam 8R-AWN's Boregun Hypervelocity Multirail A3's Sniper Rifle > --- INVENTORY (6) ---- Helical Railgun Helical Railgun Helical Railgun Helical Railgun Guided Remote Datajack Peak State ------------ > --- POWER ------------ Improved Quantum Reactor Zero-point Reactor Zero-point Reactor > --- PROPULSION ------- Cooled Antigrav System Cooled Antigrav System Cooled Antigrav System Cooled Antigrav System Cooled Antigrav System Cooled Antigrav System Cooled Antigrav System > --- UTILITY ---------- Desublimator ST Field Compressor ST Field Compressor Experimental Targeting Computer Experimental Armor Integrity Analyzer Experimental Weapon Cycler Experimental Phase Shifter 8R-AWN's Armor/TH Experimental Powered Armor Experimental Force Field > --- WEAPON ----------- Gatling Beam Gatling Beam 8R-AWN's Boregun Hypervelocity Multirail A3's Sniper Rifle > --- INVENTORY -------- Helical Railgun Helical Railgun Helical Railgun Helical Railgun Guided Remote Datajack [Rating: 268] Favorites ----------- Power Cold Fusion Reactor Engine Improved Ion Engine Reactor Cold Fusion Reactor Propulsion Armored Treads Treads Armored Treads Hover Unit Cooled Antigrav System Utility Advanced Weapon Cycler Device Advanced Weapon Cycler Processor Experimental Armor Integrity Analyzer Hackware Deep Network Scanner Protection 8R-AWN's Armor/EX Weapon Helical Railgun Energy Gun Spread Laser Energy Cannon Light EM Pulse Cannon Ballistic Gun Helical Railgun Ballistic Cannon Bore Cannon Launcher Precision Grenade Launcher Special Weapon Guided Remote Datajack Piercing Weapon Spear Build | -11 -10 -10 -9 -9 -9 -8 -8 -8 -7 -7 -7 -7 -6 -6 -6 -6 -6 -5 -5 -5 -5 -5 -4 -4 -4 -4 -3 -3 -3 -2 -2 -1 -1 -1 ------- Run | Scr Mat Min Mat Min Exi Min Mat Sto Fac Low Low Dat Pro Fac Low Low Zio Pro Fac Upp Upp War Pro Fac Arm Lab Res Qua Sec Res Tes Acc Com Ac0 Slots Evolved 22 | 3 1 . 2 . 1 2 . . . . . . . 1 1 . . . . . . 4 . . 3 2 . . . . 2 . . . Power 2 | . . . . . . . . . . . . . . . . . . . . . . 1 . . . 1 . . . . . . . . Propulsion 6 | 1 . . . . . . . . . . . . . . . . . . . . . 2 . . 2 . . . . . 1 . . . Utility 10 | 1 . . 1 . 1 2 . . . . . . . 1 . . . . . . . 1 . . 1 1 . . . . 1 . . . Weapon 4 | 1 1 . 1 . . . . . . . . . . . 1 . . . . . . . . . . . . . . . . . . . Parts Attached 244 | 5 11 1 13 . 22 6 . 3 . . . 2 . 1 1 . 6 . 4 . 1 16 7 8 9 12 1 . 10 . 20 5 24 56 Power 9 | 1 . . 1 . 1 . . . . . . . . . . . . . . . . 1 . . . 1 . . . . 1 . 3 . Engine 2 | 1 . . 1 . . . . . . . . . . . . . . . . . . . . . . . . . . . . . . . Core . | . . . . . . . . . . . . . . . . . . . . . . . . . . . . . . . . . . . Reactor 7 | . . . . . 1 . . . . . . . . . . . . . . . . 1 . . . 1 . . . . 1 . 3 . Propulsion 26 | 2 . . 2 . . . . . . . . . . . . . 1 . . . . 3 . 1 5 . . . . . 1 2 4 5 Treads 6 | 2 . . 2 . . . . . . . . . . . . . 1 . . . . . . . . . . . . . . . 1 . Leg . | . . . . . . . . . . . . . . . . . . . . . . . . . . . . . . . . . . . Wheel . | . . . . . . . . . . . . . . . . . . . . . . . . . . . . . . . . . . . Hover 20 | . . . . . . . . . . . . . . . . . . . . . . 3 . 1 5 . . . . . 1 2 3 5 Flight . | . . . . . . . . . . . . . . . . . . . . . . . . . . . . . . . . . . . Utility 108 | . 6 1 2 . 7 6 . 1 . . . . . 1 . . 1 . . . 1 4 7 5 4 7 . . 9 . 10 3 14 19 Device 29 | . 2 1 . . 4 . . . . . . . . . . . . . . . . 1 2 1 1 3 . . 1 . 5 1 2 5 Storage . | . . . . . . . . . . . . . . . . . . . . . . . . . . . . . . . . . . . Processor 6 | . . . 1 . 1 . . . . . . . . . . . 1 . . . . 1 . . . . . . . . . . 2 . Hackware 4 | . . . . . . . . . . . . . . 1 . . . . . . . 1 . . . 1 . . . . 1 . . . Protection 69 | . 4 . 1 . 2 6 . 1 . . . . . . . . . . . . 1 1 5 4 3 3 . . 8 . 4 2 10 14 Artifact . | . . . . . . . . . . . . . . . . . . . . . . . . . . . . . . . . . . . Weapon 101 | 2 5 . 8 . 14 . . 2 . . . 2 . . 1 . 4 . 4 . . 8 . 2 . 4 1 . 1 . 8 . 3 32 Energy Gun 22 | . 3 . 3 . . . . . . . . . . . . . 1 . . . . 3 . . . 1 . . . . . . . 11 Energy Cannon 5 | . 1 . . . 1 . . . . . . . . . . . . . . . . . . . . 1 . . . . 2 . . . Ballistic Gun 59 | 2 1 . 5 . 9 . . 1 . . . 1 . . 1 . . . 3 . . 4 . 2 . 1 1 . 1 . 5 . 3 19 Ballistic Cannon 3 | . . . . . . . . . . . . . . . . . 1 . 1 . . 1 . . . . . . . . . . . . Launcher 5 | . . . . . 1 . . 1 . . . . . . . . 2 . . . . . . . . . . . . . 1 . . . Special Weapon 6 | . . . . . 3 . . . . . . . . . . . . . . . . . . . . 1 . . . . . . . 2 Impact Weapon . | . . . . . . . . . . . . . . . . . . . . . . . . . . . . . . . . . . . Slashing Weapon . | . . . . . . . . . . . . . . . . . . . . . . . . . . . . . . . . . . . Piercing Weapon 1 | . . . . . . . . . . . . 1 . . . . . . . . . . . . . . . . . . . . . . Special Melee Weapon . | . . . . . . . . . . . . . . . . . . . . . . . . . . . . . . . . . . . Unidentified Prototypes 35 | . . 1 2 . 6 1 . 1 . . . . . 1 . . . . . . . 3 . 1 . 6 . . 4 . 3 . . 6 Parts Lost . | . . . . . . . . . . . . . . . . . . . . . . . . . . . . . . . . . . . Power . | . . . . . . . . . . . . . . . . . . . . . . . . . . . . . . . . . . . Propulsion . | . . . . . . . . . . . . . . . . . . . . . . . . . . . . . . . . . . . Utility . | . . . . . . . . . . . . . . . . . . . . . . . . . . . . . . . . . . . Weapon . | . . . . . . . . . . . . . . . . . . . . . . . . . . . . . . . . . . . Highest Loss Streak . | . . . . . . . . . . . . . . . . . . . . . . . . . . . . . . . . . . . Average Slot Usage (%) 79 | . 99 99 98 100 71 62 60 61 61 61 61 60 61 64 65 65 71 86 86 86 85 80 71 74 82 82 87 87 86 87 86 87 92 95 Engine 2 | . 12 12 10 10 7 . . . . . . . . . . . . . . . . . . . . . . . . . . . . . Reactor 5 | . . . . . 2 8 7 7 7 7 7 7 7 7 6 6 6 6 6 6 6 5 5 5 4 5 8 8 8 8 7 7 10 11 Treads 12 | . 26 25 20 20 19 17 15 15 15 15 15 15 15 14 13 13 12 13 13 13 13 7 . . . . . . . . . . . . Hover 6 | . . . . . . . . . . . . . . . . . . . . . . 4 10 11 26 26 25 25 25 25 24 25 25 25 Device 8 | . 3 1 10 10 9 8 7 7 7 7 7 7 7 7 6 6 6 6 6 6 6 6 13 15 11 10 8 8 8 8 10 11 12 17 Processor 6 | . . . 9 10 9 8 7 7 7 7 7 7 7 7 6 6 6 6 6 6 6 6 10 10 9 8 8 8 8 8 4 3 6 7 Hackware 2 | . . . . . . . . . . . . . . 7 6 6 6 6 6 6 6 6 5 5 4 5 8 8 8 8 7 7 . . Protection 12 | . 22 23 10 10 5 10 14 15 15 15 15 15 15 14 13 13 13 13 13 13 12 11 5 4 6 6 8 8 7 8 10 11 14 12 Energy Gun 5 | . 32 37 22 . . . . . . . . . . . . . 4 6 . . . 5 . . . . . . . . . . . 1 Ballistic Gun 13 | . . . 15 40 15 8 7 7 7 7 7 6 7 7 11 12 6 6 20 26 26 19 21 20 18 17 16 16 16 20 18 19 19 17 Ballistic Cannon 1 | . . . . . . . . . . . . . . . . . 4 6 5 6 6 4 . . . . . . . . . . . . Naked Turns . | . . . . . . . . . . . . . . . . . . . . . . . . . . . . . . . . . . . Heaviest Build 156 | 6 26 26 27 27 52 70 70 70 70 70 70 70 70 70 76 76 86 86 87 83 83 150 102 100 103 123 123 123 130 124 155 148 156 150 Greatest Support 194 | 40 40 40 40 40 40 40 40 40 40 40 40 40 40 40 40 40 40 40 40 40 40 60 60 76 123 123 123 167 143 187 187 193 185 194 Greatest Overweight (x) 4 | . . . 1 . 1 1 1 1 1 1 1 1 1 1 1 1 2 2 2 2 2 4 2 2 1 . . . 1 . 1 1 2 . Average Overweight (x) . | . . . . . . . 1 1 1 1 1 1 1 1 1 1 1 2 1 2 2 2 1 1 . . . . . . . . . . Largest Inventory Capacity 6 | 2 3 3 4 4 4 4 4 4 4 4 4 4 4 4 4 4 4 4 4 4 4 4 4 4 6 6 6 6 6 6 6 6 6 6 Average Capacity 4 | 2 2 3 3 4 4 4 4 4 4 4 4 4 4 4 4 4 4 4 4 4 4 4 4 4 5 6 6 6 6 6 6 6 6 6 Most Carried 6 | . 3 3 4 4 4 4 4 4 4 4 4 4 4 3 4 4 4 4 4 4 4 4 4 4 6 6 6 6 6 6 6 6 6 6 Average Carried 3 | . 2 3 3 3 3 3 2 3 4 4 4 3 4 3 3 3 3 4 3 4 4 3 3 3 4 5 6 5 5 6 5 5 5 5 Final Capacity 6 | 2 3 3 4 4 4 4 4 4 4 4 4 4 4 4 4 4 4 4 4 4 4 4 4 4 6 6 6 6 6 6 6 6 6 6 Final Carried 6 | . 3 3 3 4 4 2 4 4 4 4 4 4 4 3 4 3 4 4 4 4 4 4 4 3 6 6 6 6 6 6 6 6 5 5 Class Distribution -------------------- 32% | Scavenger-Gunner 19% | Hacker-Gunner 11% | Gunner 8% | Scavenger-Sprinter 7% | Tank 6% | Wizard-Sprinter 4% | Mutant Dominant Class ---------------- Tank | -10/Materials Tank | -10/Mines Gunner | -9/Materials Gunner | -9/Mines Gunner | -9/Exiles Scavenger-Gunner | -8/Mines Scavenger-Gunner | -8/Materials Scavenger-Gunner | -8/Storage Scavenger-Gunner | -7/Factory Scavenger-Gunner | -7/Lower Caves Scavenger-Gunner | -7/Lower Caves Scavenger-Gunner | -7/Data Miner Scavenger-Gunner | -6/Proximity Caves Hacker-Gunner | -6/Factory Hacker-Gunner | -6/Lower Caves Hacker-Gunner | -6/Lower Caves Hacker-Gunner | -6/Zion Hacker-Gunner | -5/Proximity Caves Scavenger-Gunner | -5/Factory Scavenger-Gunner | -5/Upper Caves Scavenger-Gunner | -5/Upper Caves Scavenger-Gunner | -5/Warlord Scavenger-Gunner | -4/Proximity Caves Hacker-Gunner | -4/Factory Hacker-Sprinter | -4/Armory Wizard-Sprinter | -4/Lab Wizard-Sprinter | -3/Research Wizard-Sprinter | -3/Quarantine Wizard-Sprinter | -3/Section 7 Wizard-Sprinter | -2/Research Wizard-Sprinter | -2/Testing Wizard-Sprinter | -1/Access Scavenger-Sprinter | -1/Command Scavenger-Sprinter | -1/Access_0 Resources | -11 -10 -10 -9 -9 -9 -8 -8 -8 -7 -7 -7 -7 -6 -6 -6 -6 -6 -5 -5 -5 -5 -5 -4 -4 -4 -4 -3 -3 -3 -2 -2 -1 -1 -1 ----------- Run | Scr Mat Min Mat Min Exi Min Mat Sto Fac Low Low Dat Pro Fac Low Low Zio Pro Fac Upp Upp War Pro Fac Arm Lab Res Qua Sec Res Tes Acc Com Ac0 Matter Collected 21526 | 250 110 . 302 223 785 365 483 1268 705 330 180 21 539 267 616 210 267 461 977 . 435 570 1133 1129 1332 126 243 157 1501 455 1083 823 1609 2571 Remotely . | . . . . . . . . . . . . . . . . . . . . . . . . . . . . . . . . . . . Salvage Created 34664 | . 1030 212 1822 443 668 568 908 2122 892 592 58 21 400 546 763 443 181 1140 2281 . 762 1118 1423 2614 2769 126 263 185 1994 1039 1592 1169 1126 3394 Parts 1926 | . 79 19 119 21 72 20 45 104 57 31 17 23 27 24 52 16 . 27 81 . 34 45 90 122 148 16 15 8 83 34 78 58 56 305 Haulers Intercepted 17 | . 2 . 6 . . . 1 2 . . . . . . . . . . 3 . . . . . . . . . 1 2 . . . . Recyclers Shooed 12 | . 2 1 2 1 . . 1 1 . . . . . . . . . . 1 . . . . 1 . . . 1 1 . . . . . Parts Field Recycled . | . . . . . . . . . . . . . . . . . . . . . . . . . . . . . . . . . . . Retrieved Matter . | . . . . . . . . . . . . . . . . . . . . . . . . . . . . . . . . . . . Parts Self-Destructed 400 | . . . . . . . . . . 16 20 . 26 . 59 18 . 27 . . 34 122 78 . . . . . . . . . . . Prevented 22 | . . . . . . . . . . . . . . . . 2 . . . . . 20 . . . . . . . . . . . . Kills | -11 -10 -10 -9 -9 -9 -8 -8 -8 -7 -7 -7 -7 -6 -6 -6 -6 -6 -5 -5 -5 -5 -5 -4 -4 -4 -4 -3 -3 -3 -2 -2 -1 -1 -1 ------- Run | Scr Mat Min Mat Min Exi Min Mat Sto Fac Low Low Dat Pro Fac Low Low Zio Pro Fac Upp Upp War Pro Fac Arm Lab Res Qua Sec Res Tes Acc Com Ac0 Combat Hostiles Destroyed 545 | . 27 4 46 11 8 10 9 35 25 14 5 4 14 8 19 9 1 14 20 . 8 20 28 32 38 1 5 1 22 8 21 15 14 49 Melee 1 | . . . 1 . . . . . . . . . . . . . . . . . . . . . . . . . . . . . . . Guns 524 | . 27 4 45 11 2 10 9 35 25 14 5 4 14 8 19 9 1 9 17 . 6 19 28 32 38 1 5 1 22 8 20 15 14 47 Cannons 10 | . . . . . . . . . . . . . . . . . . 5 3 . 2 . . . . . . . . . . . . . AOE 7 | . . . . . 6 . . . . . . . . . . . . . . . . 1 . . . . . . . . . . . . Classes Destroyed 28 | . 8 . 2 . 3 1 . 1 4 1 1 . . . 1 . 1 . . . . 3 . . . . . . 2 . . . . . Worker 32 | . 4 4 2 . . . 1 . . . . . . . . . . . 2 . . . . 3 . . 1 2 5 1 3 3 1 . Builder 22 | . 2 . 2 . . . 1 3 . . . . . . . . . . 3 . . . . 5 . . . . 2 . 1 3 . . Tunneler 3 | . . . . . . . . . 1 . . . . . . . . . . . . . . 2 . . . . . . . . . . Hauler 17 | . 2 . 6 . . . 1 2 . . . . . . . . . . 3 . . . . . . . . . 1 2 . . . . Recycler 22 | . 2 2 1 . . . 3 1 1 . . . . . . . . . 4 . . . . 3 . . . 1 1 1 . 1 1 . Mechanic 2 | . . . . . . . . 1 . . . . . . . . . . . . . . . . 1 . . . . . . . . . Operator 5 | . 1 . 1 . . . . . . . . . . . . . . . . . . . . 1 1 . . . . . . 1 . . Turret 1 | . . . . . 1 . . . . . . . . . . . . . . . . . . . . . . . . . . . . . Watcher 20 | . 3 . 4 . . . 3 1 1 . . . . 1 . . . . 1 . . . . 2 1 . . . . 1 1 . 1 . Swarmer 95 | . 6 2 7 6 . . . . 6 3 . . 11 . 6 7 . 2 . . . . 7 5 5 . . . 4 4 . 9 5 . Grunt 206 | . 21 2 28 5 . 9 4 23 8 4 4 . 3 4 5 2 . 4 10 . 4 3 16 15 15 1 3 . 4 . 8 . 1 . Brawler 14 | . . . . . . . . . 2 . . . . . 1 . . 4 . . . 4 . . . . 1 . . . 2 . . . Duelist 8 | . . . 1 . . . . 1 3 . . . . . . . . . . . . . . 1 1 . . . . . 1 . . . Protector 4 | . . . . . . . . . 2 . . . . . . . . . . . . 2 . . . . . . . . . . . . Researcher 3 | . . . . . . . . . . . . . . . . . . . . . . . . . . . . . 1 . 2 . . . Sentry 53 | . . . 10 . . . 3 9 1 . . . . 2 . . . 1 5 . 1 . 1 1 10 . . . 2 3 . 2 2 . Demolisher 5 | . . . . . . . . . . . . . . . . . . . . . . 3 . . 2 . . . . . . . . . Specialist 7 | . . . . . . . . . . . . . . . 3 . . . . . . . . . 3 1 . . . . . . . . Hunter 35 | . . . . . . 1 2 2 . . . . . . 2 . . 2 1 . 2 2 . 4 . . 1 . 4 . 5 4 3 . Programmer 27 | . . . . . . . . . 3 . . . . 1 1 . . . 3 . . . 4 6 4 . . 1 3 1 . . . . Behemoth 8 | . . . . . . . . . . . 1 . . 1 1 . . 1 1 . 1 . . . 1 . . . . . . . 1 . S7 Guard 1 | . . . . . . . . . . . . . . . . . . . . . . . . . . . . . 1 . . . . . Enhanced Grunt 30 | . . . . . . . . . . . . 4 . . . . . . . . . . . . . . . . . . . . . 26 Enhanced Sentry 2 | . . . . . . . . . . . . . . . . . . . . . . . . . . . . . . . . . . 2 Enhanced Hunter 8 | . . . . . . . . . . . . . . . . . . . . . . . . . . . . . . . . . . 8 Enhanced Programmer 10 | . . . . . . . . . . . . . . . . . . . . . . . . . . . . . . . . . . 10 Tracker 3 | . . . . . . . . . . . . . . . . . . . . . . . . . . . . . 1 . 2 . . . Combat Programmer 5 | . . . . . . . . . . . . . . . . . . . . . . . . . . . . . 1 . 2 . 2 . Striker 2 | . . . . . . . . . . . . . . . . . . . . . . 2 . . . . . . . . . . . . Executioner 4 | . . . . . . . . . . . . . . . . . . . . . . 4 . . . . . . . . . . . . Alpha 7 2 | . . . . . . . . . . . . . . . . . . . . . . . . . . . . . 2 . . . . . Protovariant Y 1 | . . . . . . . . . . . . . . . . . . . . . . . . . . . . . . . 1 . . . Protovariant H 1 | . . . . . . . . . . . . . . . . . . . . . . . . . . . . . . . 1 . . . Zionite 7 | . . . . . 7 . . . . . . . . . . . . . . . . . . . . . . . . . . . . . Packrat 1 | . . . . . . . . . . . . . 1 . . . . . . . . . . . . . . . . . . . . . Tinkerer 1 | . . . . . . . . . . . . . . . . . 1 . . . . . . . . . . . . . . . . . Assembled 7 | . . . . . 7 . . . . . . . . . . . . . . . . . . . . . . . . . . . . . Wasp 1 | . . . . . . . . . . . . . . . . . . . . . . . 1 . . . . . . . . . . . Thug 8 | . . . . . . . . 2 . 5 . . . . . . . . . . . . 1 . . . . . . . . . . . Savage 2 | . . . . . . . . . . 1 . . . . . . . . . . . . 1 . . . . . . . . . . . Mutant 2 | . . . . . . . . . . 1 . . . . . . . . . . . . 1 . . . . . . . . . . . Best Kill Streak 24 | . 6 3 6 6 7 6 4 12 9 5 4 3 4 4 6 6 1 5 11 . 4 10 11 24 19 1 5 2 12 8 8 11 5 4 Combat Bots Only 18 | . 4 2 6 6 6 6 3 8 8 5 4 3 4 4 6 6 1 5 4 . 4 10 11 10 18 1 5 1 5 6 7 5 5 4 Max Kills in Single Turn 4 | . 2 1 3 2 3 1 2 3 2 2 2 1 3 2 1 1 1 1 2 . 1 2 2 3 3 1 1 1 3 4 3 3 2 2 Gunslinging 2 | . 1 . 1 1 . . . . . . . . . . . . . . . . . 1 1 1 2 . . . 1 1 1 2 . 1 Exploded 3 | . . . . . 3 . . . . . . . . . . . . . . . . 1 . . . . . . . . . . . . Melee 1 | . . . 1 . . . . . . . . . . . . . . . . . . . . . . . . . . . . . . . Uniques/NPCs Destroyed 10 | . . . . . 4 . . . . . . 1 . . . . 1 . . . . . . . . 1 . . . . . . . 3 8R-AWN (-9/Exiles) EX-DEC (-9/Exiles) EX-HEX (-9/Exiles) EX-BIN (-9/Exiles) Data Miner (-7/Data Miner) 1C-UTU (-6/Zion) A5 (-4/Lab) A4 (-1/Access_0) A2 (-1/Access_0) A3 (-1/Access_0) Combat | -11 -10 -10 -9 -9 -9 -8 -8 -8 -7 -7 -7 -7 -6 -6 -6 -6 -6 -5 -5 -5 -5 -5 -4 -4 -4 -4 -3 -3 -3 -2 -2 -1 -1 -1 -------- Run | Scr Mat Min Mat Min Exi Min Mat Sto Fac Low Low Dat Pro Fac Low Low Zio Pro Fac Upp Upp War Pro Fac Arm Lab Res Qua Sec Res Tes Acc Com Ac0 Damage Taken 15219 | . 689 77 1014 147 209 55 51 88 498 40 122 28 249 127 273 46 343 264 541 . 176 2297 417 1331 449 66 149 84 697 159 998 393 296 2846 Core 8928 | . 414 45 686 107 143 27 30 46 228 18 65 11 123 73 144 17 209 138 252 . 97 1487 241 749 236 30 74 42 345 111 515 208 176 1841 Absorbed by Shields 6214 | . . . . . . . . 4 . . . . . . . . . . . . . 867 225 587 143 62 . . 73 . 567 421 311 2954 Redirected to Core 7743 | . 354 38 600 92 117 27 30 45 210 7 65 7 108 73 144 16 132 138 230 . 97 1161 226 688 223 23 74 42 307 90 486 189 155 1549 Core Remaining (%) 97 | 100 . 97 . . . 97 . 100 . . . . 100 . . . . 90 . . . . 99 . . 100 . . 94 . 90 . . 100 Volleys Fired 1358 | . 69 14 92 19 49 22 27 64 47 22 12 17 19 19 32 20 11 34 42 . 17 40 42 59 57 21 16 24 72 10 61 33 60 215 Largest 5 | . 3 3 4 4 1 1 1 1 1 1 1 1 1 1 2 2 3 3 5 . 5 3 4 4 4 4 4 4 5 5 5 5 5 5 Hottest 350 | . 195 195 218 92 60 60 60 60 60 60 60 60 60 60 90 90 162 162 176 . 176 106 144 144 144 144 144 144 182 182 182 182 202 350 Shots Fired 3739 | . 167 42 257 75 49 23 27 63 47 22 12 17 19 19 52 32 31 102 185 . 85 115 168 224 220 54 43 29 216 50 192 143 262 697 Gun 3610 | . 165 42 257 75 32 23 27 63 47 22 12 17 19 19 52 32 21 68 145 . 68 115 168 224 220 54 43 29 216 50 185 143 262 695 Cannon 112 | . 2 . . . 2 . . . . . . . . . . . 10 34 40 . 17 . . . . . . . . . 7 . . . Launcher 4 | . . . . . 4 . . . . . . . . . . . . . . . . . . . . . . . . . . . . . Special 13 | . . . . . 11 . . . . . . . . . . . . . . . . . . . . . . . . . . . . 2 Kinetic 3196 | . . . 56 75 32 23 27 63 47 22 12 17 19 19 52 32 21 68 185 . 85 112 168 224 220 54 43 29 216 50 185 143 262 635 Thermal 493 | . 165 42 201 . 11 . . . . . . . . . . . 10 34 . . . 1 . . . . . . . . . . . 29 Explosive 4 | . . . . . 4 . . . . . . . . . . . . . . . . . . . . . . . . . . . . . Electromagnetic 42 | . 2 . . . 2 . . . . . . . . . . . . . . . . . . . . . . . . . 7 . . 31 Entropic 2 | . . . . . . . . . . . . . . . . . . . . . . 2 . . . . . . . . . . . . Robot Hit Streak 86 | . 17 11 36 11 33 25 26 36 29 14 39 28 29 45 35 27 19 23 21 . 32 41 23 35 85 17 15 9 86 23 37 24 35 56 Robot Miss Streak 7 | . 7 4 6 1 4 3 3 4 2 2 1 2 4 1 2 4 1 2 5 . 1 2 3 2 2 1 1 1 4 2 2 4 3 3 Penetration Max 2 | . . . . . 1 . . . . . . . . . . . . 1 2 . . 2 1 2 2 1 2 . 2 2 2 1 2 2 Secondary Targets 77 | . 2 . 3 1 . . . . . . . . . . 2 . . . . . . 6 8 9 10 . 1 . 5 1 11 5 . 13 Max Gunslinging Chain 3 | . 1 . 1 1 . . . . . . . . . . 1 . . . . . . 1 1 1 2 . 1 . 1 1 1 3 . 1 Shots Hit Robots 2805 | . 145 34 201 51 36 22 27 62 47 22 12 16 18 18 42 25 26 83 113 . 65 102 119 169 148 40 34 9 155 25 145 82 148 564 Core Hits 1760 | . 158 43 234 16 38 20 24 67 43 26 12 21 20 17 30 14 9 30 63 . 21 46 53 95 80 16 16 6 80 20 69 37 73 263 Critical Hits 393 | . . . . . 5 . . . . . . . . . 8 4 7 19 36 . 10 21 19 25 32 3 8 . 25 8 21 8 22 112 Critical Kills 109 | . . . . . 1 . . . . . . . . . 4 1 1 7 15 . 2 9 5 7 13 . 1 . 4 3 3 3 4 26 Critical Parts Destroyed 241 | . . . . . 3 . . . . . . . . . 4 3 5 11 21 . 5 12 14 18 18 3 7 . 16 5 17 5 10 64 Melee Attacks 1 | . . . . . . . . . . . . 1 . . . . . . . . . . . . . . . . . . . . . . Impact . | . . . . . . . . . . . . . . . . . . . . . . . . . . . . . . . . . . . Slashing . | . . . . . . . . . . . . . . . . . . . . . . . . . . . . . . . . . . . Piercing 1 | . . . . . . . . . . . . 1 . . . . . . . . . . . . . . . . . . . . . . Sneak Attacks 1 | . . . . . . . . . . . . 1 . . . . . . . . . . . . . . . . . . . . . . Combat Hostiles . | . . . . . . . . . . . . . . . . . . . . . . . . . . . . . . . . . . . Follow-up Attacks . | . . . . . . . . . . . . . . . . . . . . . . . . . . . . . . . . . . . Damage Inflicted 94853 | . 1527 296 2551 594 2027 1407 1670 4624 3450 1772 1046 1194 1039 1454 2099 984 602 1824 4043 . 1015 3515 4588 7458 5851 1133 1368 409 5460 1404 5022 2706 6041 14680 Guns 90391 | . 1382 296 2485 589 1454 1382 1652 4560 3404 1772 1046 1111 1039 1438 2099 984 412 1234 3137 . 847 3503 4588 6507 5782 1133 1330 409 5460 1404 4790 2656 5826 14680 Cannons 1796 | . 48 . . . . . . . . . . . . . . . 190 590 568 . 168 . . . . . . . . . 232 . . . Explosions 2069 | . 85 . 57 . 527 . . . 10 . . . . . . . . . 332 . . . . 951 69 . 38 . . . . . . . Melee 83 | . . . . . . . . . . . . 83 . . . . . . . . . . . . . . . . . . . . . . Ramming 468 | . 12 . 9 5 . 25 18 64 36 . . . . 16 . . . . 6 . . 12 . . . . . . . . . 50 215 . Kinetic 86226 | . . . 503 589 1454 1382 1652 4560 3404 1772 1046 1111 1039 1438 2099 984 373 1142 3705 . 1015 3480 4588 6507 5782 1133 1330 409 5460 1404 4790 2656 5826 13593 Thermal 5924 | . 1382 296 1982 . 46 . . . . . . . . . . . 229 682 . . . 23 . 461 . . . . . . . . . 823 Explosive 980 | . 85 . 57 . 107 . . . 10 . . . . . . . . . 332 . . . . 282 69 . 38 . . . . . . . Electromagnetic 1172 | . 48 . . . 420 . . . . . . . . . . . . . . . . . . 208 . . . . . . 232 . . 264 Impact . | . . . . . . . . . . . . . . . . . . . . . . . . . . . . . . . . . . . Slashing . | . . . . . . . . . . . . . . . . . . . . . . . . . . . . . . . . . . . Piercing 83 | . . . . . . . . . . . . 83 . . . . . . . . . . . . . . . . . . . . . . Highest Corruption 7 | . . . 2 2 7 7 . 3 2 2 2 2 2 1 1 1 1 . 1 1 1 1 1 2 4 7 4 5 5 . . . . . Average Corruption 2 | . . . 2 2 5 7 . 2 1 2 2 2 2 1 1 1 1 . 1 1 1 1 1 1 3 6 4 4 5 . . . . . Corruption Purged . | . . . . . . . . . . . . . . . . . . . . . . . . . . . . . . . . . . . Effects 231 | . . . 21 5 39 20 . 5 1 7 12 6 6 . 2 3 2 . 3 4 7 1 4 12 19 10 5 7 30 . . . . . Message Errors 55 | . . . 6 2 11 2 . 1 . 4 4 3 1 . 1 2 . . . 2 5 . 2 . 1 3 1 . 4 . . . . . Matter Fused 22 | . . . . . 4 6 . 1 . . . . . . . . . . . . . . . . 2 2 2 1 4 . . . . . Heat Flow Errors 24 | . . . 2 . 5 3 . . . . 4 1 1 . . . . . . . . . . 4 . . . 2 2 . . . . . Energy Discharges 27 | . . . 1 1 5 2 . . 1 1 2 1 1 . . 1 1 . . 1 1 . 1 . 3 . . 1 3 . . . . . Data Loss (minor) 33 | . . . 8 . 7 2 . 1 . 1 1 1 2 . . . 1 . . 1 . 1 1 1 . . . 1 4 . . . . . Data Loss (major) 4 | . . . . . 3 1 . . . . . . . . . . . . . . . . . . . . . . . . . . . . Misfires 2 | . . . . . . 1 . . . . . . . . . . . . . . . . . . . . . . 1 . . . . . Targeting Errors 51 | . . . 3 1 4 3 . 1 . 1 1 . 1 . . . . . 2 . 1 . . 6 8 5 2 1 11 . . . . . Weapon Failures 13 | . . . 1 1 . . . 1 . . . . . . 1 . . . 1 . . . . 1 5 . . 1 1 . . . . . Overload Shots . | . . . . . . . . . . . . . . . . . . . . . . . . . . . . . . . . . . . Overflow Damage 310 | . . . . . 37 . . . . . . . . . . . 6 . 63 . . . . 194 . . . . . . . 10 . . Projectiles 15 | . . . . . . . . . . . . . . . . . 6 . 9 . . . . . . . . . . . . . . . Explosions 285 | . . . . . 37 . . . . . . . . . . . . . 54 . . . . 194 . . . . . . . . . . Melee 10 | . . . . . . . . . . . . . . . . . . . . . . . . . . . . . . . . 10 . . Knockbacks 15 | . . . . . . . . . . . . . . . . . 3 1 4 . 3 . . . . . . . . . . 1 3 . Impact 5 | . . . . . . . . . . . . . . . . . . . 1 . . . . . . . . . . . . 1 3 . Kinetic 10 | . . . . . . . . . . . . . . . . . 3 1 3 . 3 . . . . . . . . . . . . . Secondary . | . . . . . . . . . . . . . . . . . . . . . . . . . . . . . . . . . . . Self-Inflicted Damage 288 | . 157 . 73 . . . . . 28 . . . . . . . . . . . . 5 . . . . . . . . . 25 . . Shots 7 | . 2 . 1 . . . . . 4 . . . . . . . . . . . . . . . . . . . . . . . . . Rammed 54 | . 1 . 5 2 . 2 1 6 3 . . . . 3 . . . . 2 . . 2 . . . . . . . . . 1 26 . Targets Rammed 57 | . 2 . 6 2 . 2 1 6 4 . . . . 3 . . . . 2 . . 2 . . . . . . . . . 1 26 . Kicked . | . . . . . . . . . . . . . . . . . . . . . . . . . . . . . . . . . . . Crushed 3 | . 1 . 1 . . . . . 1 . . . . . . . . . . . . . . . . . . . . . . . . . Highest Temperature 376 | . 313 208 376 . 244 284 53 119 128 128 226 209 126 110 64 76 84 109 96 . 84 20 96 310 147 115 180 208 226 63 80 84 124 267 Average Temperature 63 | . 91 82 107 . 51 114 33 39 45 48 78 70 69 61 32 35 39 45 39 . 35 5 39 75 49 56 95 100 65 39 31 35 37 74 Received Heat Transfer 3505 | . 240 33 411 39 . 81 36 216 405 90 60 42 . 36 84 60 . 132 96 . 72 197 67 419 248 . 36 . 111 18 70 8 4 194 Effects 4 | . . . 3 . . . . . . . . . . . . . . . . . . . . 1 . . . . . . . . . . Energy Bleed 3 | . . . 2 . . . . . . . . . . . . . . . . . . . . 1 . . . . . . . . . . Interference 1 | . . . 1 . . . . . . . . . . . . . . . . . . . . . . . . . . . . . . . Siege Activations . | . . . . . . . . . . . . . . . . . . . . . . . . . . . . . . . . . . . Robots Corrupted 4 | . . . . . . . . . . . . . . . . . . . . . . . . . . . . . . . 2 . . 2 Combat Hostiles 3 | . . . . . . . . . . . . . . . . . . . . . . . . . . . . . . . 1 . . 2 Parts Fried 12 | . . . . . . . . . . . . . . . . . . . . . . . . . . . . . . . 7 . . 5 Impact Corruptions 1 | . . . . . . . . . . . . . . . . . . . . . . . . . . . . . . . . 1 . . Robots Melted . | . . . . . . . . . . . . . . . . . . . . . . . . . . . . . . . . . . . Combat Hostiles . | . . . . . . . . . . . . . . . . . . . . . . . . . . . . . . . . . . . Parts Melted 11 | . . . 2 . 1 . . 1 . . . . . . 1 . . 2 . . . . 1 . . . . . . . . . . 3 Heat Transferred 8071 | . 1725 380 2490 . 184 . . . . . . . . . . . 158 1350 . . . 37 . 300 . . . . . . . . . 1447 Parts Sabotaged 3 | . . . . . . . . . . . . . . . . . . . . . . 3 . . . . . . . . . . . . Parts Stolen 2 | . . . . . . . . . . . . . . . . 2 . . . . . . . . . . . . . . . . . . Parts Stripped . | . . . . . . . . . . . . . . . . . . . . . . . . . . . . . . . . . . . Power Chain Reactions . | . . . . . . . . . . . . . . . . . . . . . . . . . . . . . . . . . . . Missiles Intercepted . | . . . . . . . . . . . . . . . . . . . . . . . . . . . . . . . . . . . Latent Energy Used 334 | . . . . . 334 . . . . . . . . . . . . . . . . . . . . . . . . . . . . . LE Corruption 5 | . . . . . 5 . . . . . . . . . . . . . . . . . . . . . . . . . . . . . Alert | -11 -10 -10 -9 -9 -9 -8 -8 -8 -7 -7 -7 -7 -6 -6 -6 -6 -6 -5 -5 -5 -5 -5 -4 -4 -4 -4 -3 -3 -3 -2 -2 -1 -1 -1 ------- Run | Scr Mat Min Mat Min Exi Min Mat Sto Fac Low Low Dat Pro Fac Low Low Zio Pro Fac Upp Upp War Pro Fac Arm Lab Res Qua Sec Res Tes Acc Com Ac0 Peak Influence 1345 | . 366 249 947 641 . 268 241 1102 1021 . . . . 304 . . . . 434 . . . . 1211 1345 . 236 271 984 552 681 974 892 . Initial 623 | . . 134 . 351 . . 26 87 501 . . . . 75 . . . . 75 . . . . 189 592 . . 69 152 522 209 112 623 . Average 420 | . 219 101 473 554 . 137 131 544 811 . . . . 171 . . . . 174 . . . . 500 864 . 101 178 695 196 243 679 779 . Maximum Alert Level 4 | . 1 1 3 2 . 1 1 4 3 . . . . 1 . . . . 2 . . . . 4 4 . 1 1 3 2 2 3 4 . Low Security (%) 26 | 100 29 71 25 . . 58 71 4 . . . . . 57 . . . . 63 . . . . 25 . . 91 44 4 63 45 9 . . Level 1 22 | . 70 28 21 2 . 41 28 24 . . . . . 42 . . . . 28 . . . . 12 . . 8 55 7 23 33 16 . . Level 2 16 | . . . 23 97 . . . 47 15 . . . . . . . . . 7 . . . . 34 29 . . . 28 12 21 14 5 . Level 3 30 | . . . 29 . . . . 18 84 . . . . . . . . . . . . . . 16 57 . . . 59 . . 59 76 . Level 4 4 | . . . . . . . . 4 . . . . . . . . . . . . . . . 11 12 . . . . . . . 18 . Level 5 . | . . . . . . . . . . . . . . . . . . . . . . . . . . . . . . . . . . . High Security . | . . . . . . . . . . . . . . . . . . . . . . . . . . . . . . . . . . . Max Security . | . . . . . . . . . . . . . . . . . . . . . . . . . . . . . . . . . . . Squads Dispatched 58 | . 8 . 11 . . . 1 6 7 . . . . 1 . . . . 5 . . . . 8 2 . 1 . 3 1 4 . . . Investigation 13 | . 5 . 5 . . . 1 1 . . . . . . . . . . . . . . . . 1 . . . . . . . . . Extermination 4 | . . . . . . . . . 1 . . . . 1 . . . . 1 . . . . . . . . . 1 . . . . . Reinforcement 18 | . 3 . 6 . . . . 3 1 . . . . . . . . . 2 . . . . 3 . . . . . . . . . . Assault 10 | . . . . . . . . 2 5 . . . . . . . . . . . . . . 1 1 . . . . . 1 . . . Garrison 7 | . . . . . . . . . . . . . . . . . . . 2 . . . . 4 . . 1 . . . . . . . Intercept 6 | . . . . . . . . . . . . . . . . . . . . . . . . . . . . . 2 1 3 . . . Construction Impeded 4 | . . . . . . . . 1 1 . . . . . . . . . 1 . . . . 1 . . . . . . . . . . Haulers Reinforced 2 | . . . . . . . . . . . . . . . . . . . 1 . . . . 1 . . . . . . . . . . Stealth | -11 -10 -10 -9 -9 -9 -8 -8 -8 -7 -7 -7 -7 -6 -6 -6 -6 -6 -5 -5 -5 -5 -5 -4 -4 -4 -4 -3 -3 -3 -2 -2 -1 -1 -1 --------- Run | Scr Mat Min Mat Min Exi Min Mat Sto Fac Low Low Dat Pro Fac Low Low Zio Pro Fac Upp Upp War Pro Fac Arm Lab Res Qua Sec Res Tes Acc Com Ac0 Distress Signals 43 | . 2 . 3 . . . 2 6 1 . . . . 1 . . . . 3 . . . . 4 . . . . 4 2 . . 15 . Communications Jammed . | . . . . . . . . . . . . . . . . . . . . . . . . . . . . . . . . . . . Distress Signals . | . . . . . . . . . . . . . . . . . . . . . . . . . . . . . . . . . . . Times Spotted 780 | . 37 4 67 11 44 10 13 48 27 13 5 4 14 11 20 13 1 14 31 . 8 60 25 52 43 1 8 6 31 15 33 27 29 55 Peak Tracking Total 18 | . 4 2 6 3 10 3 3 6 5 4 3 3 4 4 5 7 1 5 5 . 3 18 10 15 7 1 4 2 6 7 5 10 9 5 Tactical Retreats 45 | . . . . . 16 . . 3 . . . . . . 1 . . . 3 . . . 2 5 2 . 1 . 2 2 2 4 2 . Traps | -11 -10 -10 -9 -9 -9 -8 -8 -8 -7 -7 -7 -7 -6 -6 -6 -6 -6 -5 -5 -5 -5 -5 -4 -4 -4 -4 -3 -3 -3 -2 -2 -1 -1 -1 ------- Run | Scr Mat Min Mat Min Exi Min Mat Sto Fac Low Low Dat Pro Fac Low Low Zio Pro Fac Upp Upp War Pro Fac Arm Lab Res Qua Sec Res Tes Acc Com Ac0 Traps Triggered 38 | . 2 . 2 . . . 2 7 4 . . . . 1 . . . . . . . . . 1 5 . 2 1 . . 2 1 8 . Indirectly . | . . . . . . . . . . . . . . . . . . . . . . . . . . . . . . . . . . . Trap Hack Attempts . | . . . . . . . . . . . . . . . . . . . . . . . . . . . . . . . . . . . Triggered . | . . . . . . . . . . . . . . . . . . . . . . . . . . . . . . . . . . . Disarmed 5 | . . . . . . . . . . . . . . . . . . . . . . . . . . . . . . . . . 5 . Reprogrammed . | . . . . . . . . . . . . . . . . . . . . . . . . . . . . . . . . . . . Reused . | . . . . . . . . . . . . . . . . . . . . . . . . . . . . . . . . . . . Traps Extracted . | . . . . . . . . . . . . . . . . . . . . . . . . . . . . . . . . . . . Installed . | . . . . . . . . . . . . . . . . . . . . . . . . . . . . . . . . . . . Triggered 12 | . . . . . . . . . . . . . . . 1 1 . . . . . 9 1 . . . . . . . . . . . Machines | -11 -10 -10 -9 -9 -9 -8 -8 -8 -7 -7 -7 -7 -6 -6 -6 -6 -6 -5 -5 -5 -5 -5 -4 -4 -4 -4 -3 -3 -3 -2 -2 -1 -1 -1 ---------- Run | Scr Mat Min Mat Min Exi Min Mat Sto Fac Low Low Dat Pro Fac Low Low Zio Pro Fac Upp Upp War Pro Fac Arm Lab Res Qua Sec Res Tes Acc Com Ac0 Machines Disabled 118 | . 2 . 1 1 10 1 1 2 6 . . . . 1 2 . . . 6 . . . 1 27 6 1 1 4 16 1 15 3 3 7 Max in Single Turn 8 | . 1 . 1 1 2 1 1 1 5 . . . . 1 1 . . . 2 . . . 1 8 2 1 1 1 2 1 2 1 1 1 Garrison Access 4 | . . . . . . . . 1 1 . . . . . . . . . . . . . . 1 . . . . . . 1 . . . Machines Sabotaged . | . . . . . . . . . . . . . . . . . . . . . . . . . . . . . . . . . . . Garrisons Compromised . | . . . . . . . . . . . . . . . . . . . . . . . . . . . . . . . . . . . Overloaded Fab Kills . | . . . . . . . . . . . . . . . . . . . . . . . . . . . . . . . . . . . Fab Network Shutdowns . | . . . . . . . . . . . . . . . . . . . . . . . . . . . . . . . . . . . Hacking | -11 -10 -10 -9 -9 -9 -8 -8 -8 -7 -7 -7 -7 -6 -6 -6 -6 -6 -5 -5 -5 -5 -5 -4 -4 -4 -4 -3 -3 -3 -2 -2 -1 -1 -1 --------- Run | Scr Mat Min Mat Min Exi Min Mat Sto Fac Low Low Dat Pro Fac Low Low Zio Pro Fac Upp Upp War Pro Fac Arm Lab Res Qua Sec Res Tes Acc Com Ac0 Machines Accessed 78 | . 5 . 7 . 2 . 3 7 4 1 1 4 . 1 1 . . . 2 . . 4 1 4 7 1 2 1 2 1 7 4 5 1 Terminals 50 | . 3 . 4 . . . 3 5 4 . . . . 1 1 . . . 2 . . . 1 4 6 . 2 . 1 1 4 3 5 . Fabricators 1 | . . . . . . . . . . . . . . . . . . . . . . . . . 1 . . . . . . . . . Repair Stations 2 | . . . 1 . . . . . . . . . . . . . . . . . . . . . . . . . . . . 1 . . Recycling Units 5 | . 2 . 2 . . . . 1 . . . . . . . . . . . . . . . . . . . . . . . . . . Scanalyzers 4 | . . . . . . . . . . . . . . . . . . . . . . . . . . . . 1 1 . 2 . . . Garrison Access 2 | . . . . . . . . 1 . . . . . . . . . . . . . . . . . . . . . . 1 . . . Total Hacks 249 | . 14 . 20 . 2 . 11 16 5 1 1 25 . 3 5 . . . 12 . . 15 5 9 20 20 3 1 5 12 22 6 12 4 Successful 187 | . 6 . 10 . 2 . 6 10 2 1 1 25 . 2 5 . . . 7 . . 15 5 6 10 20 2 1 4 9 19 5 10 4 Failed 60 | . 7 . 9 . . . 5 6 3 . . . . 1 . . . . 5 . . . . 3 10 . 1 . 1 3 3 1 2 . Catastrophic 9 | . 1 . 2 . . . 2 . 2 . . . . . . . . . . . . . . 1 1 . . . . . . . . . Database Lockouts 2 | . 1 . 1 . . . . . . . . . . . . . . . . . . . . . . . . . . . . . . . Manual 96 | . 8 . 6 . 1 . 8 6 5 . . . . 7 1 . . . 7 . . 1 . 4 13 . . . . 11 14 . 4 . Terminals 156 | . 11 . 16 . . . 11 14 5 . . . . 3 5 . . . 12 . . . 5 9 18 . 3 . 1 12 16 3 12 . Fabricators 2 | . . . . . . . . . . . . . . . . . . . . . . . . . 2 . . . . . . . . . Repair Stations 5 | . . . 2 . . . . . . . . . . . . . . . . . . . . . . . . . . . . 3 . . Recycling Units 6 | . 3 . 2 . . . . 1 . . . . . . . . . . . . . . . . . . . . . . . . . . Scanalyzers 10 | . . . . . . . . . . . . . . . . . . . . . . . . . . . . 1 4 . 5 . . . Garrison Access 2 | . . . . . . . . 1 . . . . . . . . . . . . . . . . . . . . . . 1 . . . Terminal Hacks 157 | . 4 . 6 . 2 . 6 8 1 1 1 25 . 2 5 . . . 7 . . 15 5 6 7 20 2 . 1 8 9 3 9 4 Record 43 | . . . . . 1 . 1 . . . . 11 . . 5 . . . . . . . 5 . . 20 . . . . . . . . Part Schematic 6 | . . . . . . . . . . . . 4 . 1 . . . . . . . . . . . . . . . 1 . . . . Robot Schematic 7 | . . . . . . . . . . . . 7 . . . . . . . . . . . . . . . . . . . . . . Robot Analysis 5 | . 1 . 1 . . . 3 . . . . . . . . . . . . . . . . . . . . . . . . . . . Prototype ID Bank 27 | . . . 1 . . . . 5 . . . 3 . . . . . . 4 . . 14 . . . . . . . . . . . . Open Door 13 | . . . . . . . . 3 . 1 1 . . . . . . . . . . 1 . . 1 . 1 . 1 . . 3 1 . Level Access Points 1 | . . . . . . . . . . . . . . . . . . . . . . . . . . . . . . . . . 1 . Branch Access Points 6 | . . . 1 . . . 1 . 1 . . . . 1 . . . . . . . . . 1 . . . . . 1 . . . . Machine Index 1 | . . . . . . . . . . . . . . . . . . . . . . . . . . . . . . . . . 1 . Alert Level 7 | . . . 1 . . . 1 . . . . . . . . . . . . . . . . 1 1 . . . . 1 2 . . . Unreport Threat 25 | . . . . . . . . . . . . . . . . . . . 3 . . . . 4 5 . 1 . . 5 6 . 1 . Locate Traps 1 | . . . . . . . . . . . . . . . . . . . . . . . . . . . . . . . . . 1 . Disarm Traps 2 | . . . . . . . . . . . . . . . . . . . . . . . . . . . . . . . . . 2 . Dispatch Records 1 | . 1 . . . . . . . . . . . . . . . . . . . . . . . . . . . . . . . . . Security Status 1 | . 1 . . . . . . . . . . . . . . . . . . . . . . . . . . . . . . . . . Surveillance Status 1 | . 1 . . . . . . . . . . . . . . . . . . . . . . . . . . . . . . . . . Hauler Manifests 1 | . . . 1 . . . . . . . . . . . . . . . . . . . . . . . . . . . . . . . Registered Components 1 | . . . 1 . . . . . . . . . . . . . . . . . . . . . . . . . . . . . . . Zone Layout 1 | . . . . . . . . . . . . . . . . . . . . . . . . . . . . . . . 1 . . . EX-Prototype ID Bank 1 | . . . . . 1 . . . . . . . . . . . . . . . . . . . . . . . . . . . . . Disengage Seal 2 | . . . . . . . . . . . . . . . . . . . . . . . . . . . . . . . . . 2 . Gate Test 138-A 1 | . . . . . . . . . . . . . . . . . . . . . . . . . . . . . . . . . . 1 Gate Test 138-B 1 | . . . . . . . . . . . . . . . . . . . . . . . . . . . . . . . . . . 1 Gate Test 138-C 2 | . . . . . . . . . . . . . . . . . . . . . . . . . . . . . . . . . . 2 Fabricator Hacks . | . . . . . . . . . . . . . . . . . . . . . . . . . . . . . . . . . . . Repair Station Hacks 4 | . . . 2 . . . . . . . . . . . . . . . . . . . . . . . . . . . . 2 . . Scan Component 2 | . . . 1 . . . . . . . . . . . . . . . . . . . . . . . . . . . . 1 . . Repair 2 | . . . 1 . . . . . . . . . . . . . . . . . . . . . . . . . . . . 1 . . Recycling Unit Hacks . | . . . . . . . . . . . . . . . . . . . . . . . . . . . . . . . . . . . Scanalyzer 9 | . . . . . . . . . . . . . . . . . . . . . . . . . . . . 1 3 . 5 . . . Insert Component 7 | . . . . . . . . . . . . . . . . . . . . . . . . . . . . 1 3 . 3 . . . Analyze 2 | . . . . . . . . . . . . . . . . . . . . . . . . . . . . . . . 2 . . . Garrison Access Hacks 2 | . . . . . . . . 1 . . . . . . . . . . . . . . . . . . . . . . 1 . . . Seal Access 2 | . . . . . . . . 1 . . . . . . . . . . . . . . . . . . . . . . 1 . . . Unauthorized Hacks 15 | . 2 . 2 . . . . 1 1 . . . . . . . . . . . . . . . 3 . . . . 1 4 . 1 . Terminals 8 | . . . . . . . . . 1 . . . . . . . . . . . . . . . 1 . . . . 1 4 . 1 . Track 2 | . . . . . . . . . . . . . . . . . . . . . . . . . . . . . . . 2 . . . Assimilate 1 | . . . . . . . . . . . . . . . . . . . . . . . . . . . . . . . 1 . . . Botnet 4 | . . . . . . . . . 1 . . . . . . . . . . . . . . . 1 . . . . 1 . . 1 . Operators 1 | . . . . . . . . . . . . . . . . . . . . . . . . . . . . . . . 1 . . . Fabricators 2 | . . . . . . . . . . . . . . . . . . . . . . . . . 2 . . . . . . . . . Report 1 | . . . . . . . . . . . . . . . . . . . . . . . . . 1 . . . . . . . . . Haulers 1 | . . . . . . . . . . . . . . . . . . . . . . . . . 1 . . . . . . . . . Repair Stations . | . . . . . . . . . . . . . . . . . . . . . . . . . . . . . . . . . . . Recycling Units 5 | . 2 . 2 . . . . 1 . . . . . . . . . . . . . . . . . . . . . . . . . . Tunnel 5 | . 2 . 2 . . . . 1 . . . . . . . . . . . . . . . . . . . . . . . . . . Scanalyzers . | . . . . . . . . . . . . . . . . . . . . . . . . . . . . . . . . . . . Garrison Access . | . . . . . . . . . . . . . . . . . . . . . . . . . . . . . . . . . . . Data Cores Recovered 1 | . . . . . . . . . . . . . . . . . . . . . . . . . 1 . . . . . . . . . Used 1 | . . . . . . . . . . . . . . . . . . . . . . . . . 1 . . . . . . . . . Hacking Detections 42 | . 4 . 4 . . . 2 2 2 . . . . 1 1 . . . 2 . . . . 4 7 . 1 . 1 1 6 2 2 . Full Trace Events 6 | . 3 . 2 . . . . . . . . . . . 1 . . . . . . . . . . . . . . . . . . . Feedback Events . | . . . . . . . . . . . . . . . . . . . . . . . . . . . . . . . . . . . Feedback Blocked . | . . . . . . . . . . . . . . . . . . . . . . . . . . . . . . . . . . . Robot Schematics Acquired 7 | . . . . . . . . . . . . 7 . . . . . . . . . . . . . . . . . . . . . . Robots Built . | . . . . . . . . . . . . . . . . . . . . . . . . . . . . . . . . . . . Matter . | . . . . . . . . . . . . . . . . . . . . . . . . . . . . . . . . . . . Time . | . . . . . . . . . . . . . . . . . . . . . . . . . . . . . . . . . . . Total Robot Build Rating . | . . . . . . . . . . . . . . . . . . . . . . . . . . . . . . . . . . . Part Schematics Acquired 7 | . . . . . . . . . . . . 4 . 1 . . . . . . . . . . . . . . . 1 1 . . . Parts Built . | . . . . . . . . . . . . . . . . . . . . . . . . . . . . . . . . . . . Matter . | . . . . . . . . . . . . . . . . . . . . . . . . . . . . . . . . . . . Time . | . . . . . . . . . . . . . . . . . . . . . . . . . . . . . . . . . . . Total Part Build Rating . | . . . . . . . . . . . . . . . . . . . . . . . . . . . . . . . . . . . Parts Repaired 2 | . . . 1 . . . . . . . . . . . . . . . . . . . . . . . . . . . . 1 . . Time 66 | . . . 32 . . . . . . . . . . . . . . . . . . . . . . . . . . . . 34 . . Parts Recycled . | . . . . . . . . . . . . . . . . . . . . . . . . . . . . . . . . . . . Recycled Matter . | . . . . . . . . . . . . . . . . . . . . . . . . . . . . . . . . . . . Retrieved Matter . | . . . . . . . . . . . . . . . . . . . . . . . . . . . . . . . . . . . Retrieved Components . | . . . . . . . . . . . . . . . . . . . . . . . . . . . . . . . . . . . Parts Scanalyzed 1 | . . . . . . . . . . . . . . . . . . . . . . . . . . . . . . . 1 . . . Part Schematics Acquired 1 | . . . . . . . . . . . . . . . . . . . . . . . . . . . . . . . 1 . . . Parts Damaged . | . . . . . . . . . . . . . . . . . . . . . . . . . . . . . . . . . . . Bothacking | -11 -10 -10 -9 -9 -9 -8 -8 -8 -7 -7 -7 -7 -6 -6 -6 -6 -6 -5 -5 -5 -5 -5 -4 -4 -4 -4 -3 -3 -3 -2 -2 -1 -1 -1 ------------ Run | Scr Mat Min Mat Min Exi Min Mat Sto Fac Low Low Dat Pro Fac Low Low Zio Pro Fac Upp Upp War Pro Fac Arm Lab Res Qua Sec Res Tes Acc Com Ac0 Used RIF Installer . | . . . . . . . . . . . . . . . . . . . . . . . . . . . . . . . . . . . Robots Hacked 2 | . . . . . . . . . . . . . . . . . . . . . . . . . . . . . . . . . . 2 Non-combat . | . . . . . . . . . . . . . . . . . . . . . . . . . . . . . . . . . . . Combat . | . . . . . . . . . . . . . . . . . . . . . . . . . . . . . . . . . . . Robot Hacks Applied . | . . . . . . . . . . . . . . . . . . . . . . . . . . . . . . . . . . . Manual 2 | . . . . . . . . . . . . . . . . . . . . . . . . . . . . . . . . . . 2 Relay Couplers Released . | . . . . . . . . . . . . . . . . . . . . . . . . . . . . . . . . . . . Robots Rewired 6 | . . . . . . . . . . . . . . . . . . . . . . . . . 5 . . . . . 1 . . . Allies Hacked . | . . . . . . . . . . . . . . . . . . . . . . . . . . . . . . . . . . . Hacks Repelled . | . . . . . . . . . . . . . . . . . . . . . . . . . . . . . . . . . . . Allies | -11 -10 -10 -9 -9 -9 -8 -8 -8 -7 -7 -7 -7 -6 -6 -6 -6 -6 -5 -5 -5 -5 -5 -4 -4 -4 -4 -3 -3 -3 -2 -2 -1 -1 -1 -------- Run | Scr Mat Min Mat Min Exi Min Mat Sto Fac Low Low Dat Pro Fac Low Low Zio Pro Fac Upp Upp War Pro Fac Arm Lab Res Qua Sec Res Tes Acc Com Ac0 Total Allies 12 | . . . . . . . . 2 . . . . . 3 . . . . . . . . . . 5 . . . . . 2 . . . Largest Group 4 | . . . . . . . . 2 . . . . . 3 3 . . . . . . . . . 4 1 . . . . 1 . . . Highest-Rated Group 184 | . . . . . . . . 62 . . . . . 93 93 . . . . . . . . . 184 41 . . . . 157 . . . Highest-Rated Ally 157 | . . . . . . . . 31 . . . . . 31 31 . . . . . . . . . 47 41 . . . . 157 . . . Total Orders . | . . . . . . . . . . . . . . . . . . . . . . . . . . . . . . . . . . . Ally Attacks 73 | . . . . . . . . 34 . . . . . 4 32 . . . . . . . . . 3 . . . . . . . . . Total Damage 1044 | . . . . . . . . 506 . . . . . 62 422 . . . . . . . . . 54 . . . . . . . . . Kills 4 | . . . . . . . . 2 . . . . . . 2 . . . . . . . . . . . . . . . . . . . Allies Corrupted 1 | . . . . . . . . . . . . . . . . . . . . . . . . . . . . . . . 1 . . . Allies Melted . | . . . . . . . . . . . . . . . . . . . . . . . . . . . . . . . . . . . Intel | -11 -10 -10 -9 -9 -9 -8 -8 -8 -7 -7 -7 -7 -6 -6 -6 -6 -6 -5 -5 -5 -5 -5 -4 -4 -4 -4 -3 -3 -3 -2 -2 -1 -1 -1 ------- Run | Scr Mat Min Mat Min Exi Min Mat Sto Fac Low Low Dat Pro Fac Low Low Zio Pro Fac Upp Upp War Pro Fac Arm Lab Res Qua Sec Res Tes Acc Com Ac0 Robot Analysis Total 120 | . 1 . 1 . . . 3 . . . . 115 . . . . . . . . . . . . . . . . . . . . . . Derelict Logs Recovered 14 | . . 1 . . . . . . . 2 1 . 1 . 1 . 3 1 . 1 1 . 2 . . . . . . . . . . . Drone Launches . | . . . . . . . . . . . . . . . . . . . . . . . . . . . . . . . . . . . Drone Recoveries . | . . . . . . . . . . . . . . . . . . . . . . . . . . . . . . . . . . . Exploration | -11 -10 -10 -9 -9 -9 -8 -8 -8 -7 -7 -7 -7 -6 -6 -6 -6 -6 -5 -5 -5 -5 -5 -4 -4 -4 -4 -3 -3 -3 -2 -2 -1 -1 -1 ------------- Run | Scr Mat Min Mat Min Exi Min Mat Sto Fac Low Low Dat Pro Fac Low Low Zio Pro Fac Upp Upp War Pro Fac Arm Lab Res Qua Sec Res Tes Acc Com Ac0 Turns Passed 29802 | 77 1707 977 2549 417 1614 453 535 1073 1219 779 701 455 793 480 1412 443 2210 466 637 685 664 1646 837 662 470 206 126 212 627 118 521 296 2373 1362 Spaces Moved 19993 | 47 896 576 1229 202 849 213 246 503 599 396 357 216 405 233 706 215 1124 178 222 327 293 720 430 324 539 381 262 491 1106 309 664 410 2272 2053 Core 4 | 4 . . . . . . . . . . . . . . . . . . . . . . . . . . . . . . . . . . Treads 10493 | 43 896 576 1229 202 849 213 246 503 599 396 357 216 405 233 706 215 1124 178 222 327 293 461 . . . . . . . . . . 4 . Legs . | . . . . . . . . . . . . . . . . . . . . . . . . . . . . . . . . . . . Wheels . | . . . . . . . . . . . . . . . . . . . . . . . . . . . . . . . . . . . Hover 9496 | . . . . . . . . . . . . . . . . . . . . . . 259 430 324 539 381 262 491 1106 309 664 410 2268 2053 Flight . | . . . . . . . . . . . . . . . . . . . . . . . . . . . . . . . . . . . Fastest Speed 15 | 50 160 160 160 170 170 170 190 190 190 190 190 190 190 190 190 190 190 210 190 210 210 88 88 88 30 31 31 15 31 15 15 15 28 20 Average Speed 116 | 150 160 160 163 170 170 189 190 190 190 190 190 190 190 190 190 190 193 210 209 210 210 190 142 125 32 31 31 30 31 27 36 34 28 25 Slowest Speed 250 | 160 160 160 190 170 190 190 190 190 190 190 190 190 190 190 190 190 210 210 210 210 210 250 146 146 98 31 31 31 89 31 96 82 200 28 Overloaded Moves 165 | . . . . . . . . . . . . . . . . . . . . . . 7 25 8 . . . 5 . 76 10 34 . . Propulsion Burnouts . | . . . . . . . . . . . . . . . . . . . . . . . . . . . . . . . . . . . Robots Hopped 1 | . . . . . . . . . . . . . . . . . 1 . . . . . . . . . . . . . . . . . Cave-ins Triggered . | . . . . . . . . . . . . . . . . . . . . . . . . . . . . . . . . . . . Teleports 1 | . . . . . . . . . . . . . . . . . . . . . . . . . . . . . . . . . 1 . Exploration Rate (%) 54 | 3 95 96 89 25 87 55 31 82 22 56 56 80 69 11 68 34 81 39 10 54 53 89 69 16 43 99 12 67 54 14 80 12 67 79 Regions Visited 34 Branch Regions 24 Pre-discovered Areas 32 | . 2 1 2 . 1 . . 1 . 1 . 21 . . . . 3 . . . . . . . . . . . . . . . . . Known Exits Taken 11 | . . . 1 . . . 1 . 1 . . . . 1 . . . 1 1 . . . 1 1 . 1 1 . . 1 . . . . Unknown Exits Taken 23 | 1 1 1 . 1 1 1 . 1 . 1 1 1 1 . 1 1 1 . . 1 1 1 . . 1 . . 1 1 . 1 1 1 . Scrap Searched 25 | . . 1 . 1 . 1 . . . 2 3 . 3 . 3 . 4 . . 3 3 . 1 . . . . . . . . . . . Spaces Dug 89 | . . . . . . . . . . . . . . . 3 . . . . . . 2 . 5 36 . 2 8 16 . 4 10 3 . Terrain Destroyed 1640 | . 62 . 9 . 51 23 31 65 32 11 6 4 14 10 24 9 11 18 47 . 18 61 104 166 134 14 27 19 48 14 72 87 45 404 Melee . | . . . . . . . . . . . . . . . . . . . . . . . . . . . . . . . . . . . Projectile 1339 | . . . . . 7 23 31 65 15 11 6 4 14 10 24 9 11 18 31 . 18 61 104 79 107 14 9 19 48 14 72 66 45 404 AOE 301 | . 62 . 9 . 44 . . . 17 . . . . . . . . . 16 . . . . 87 27 . 18 . . . . 21 . . Terrain Rammed . | . . . . . . . . . . . . . . . . . . . . . . . . . . . . . . . . . . . Walls Destroyed . | . . . . . . . . . . . . . . . . . . . . . . . . . . . . . . . . . . . Machines Disabled . | . . . . . . . . . . . . . . . . . . . . . . . . . . . . . . . . . . . Actions | -11 -10 -10 -9 -9 -9 -8 -8 -8 -7 -7 -7 -7 -6 -6 -6 -6 -6 -5 -5 -5 -5 -5 -4 -4 -4 -4 -3 -3 -3 -2 -2 -1 -1 -1 --------- Run | Scr Mat Min Mat Min Exi Min Mat Sto Fac Low Low Dat Pro Fac Low Low Zio Pro Fac Upp Upp War Pro Fac Arm Lab Res Qua Sec Res Tes Acc Com Ac0 Total 25025 | 51 1027 602 1567 228 996 267 320 633 689 429 383 267 434 273 771 240 1140 222 321 326 311 940 590 491 742 447 287 537 1295 324 866 509 3873 2627 Wait 2146 | . 16 2 153 1 39 7 34 13 10 5 7 22 . 8 5 3 . . 7 . . 89 3 21 51 5 4 . 56 6 33 42 1393 111 Move 19959 | 46 895 575 1228 201 848 212 246 502 598 395 356 215 404 232 705 214 1121 177 221 326 292 720 429 323 538 380 261 490 1105 308 663 409 2271 2053 Hop 1 | . . . . . . . . . . . . . . . . . 1 . . . . . . . . . . . . . . . . . Pick Up 127 | . 8 1 5 3 6 2 . 6 1 . . 3 . . 3 . 1 . 1 . . 6 10 9 11 10 . 1 8 . 6 1 9 16 Fast Attach 149 | 5 8 1 11 . 16 2 . 2 . . . 1 . . . . 5 . 4 . 1 13 3 4 4 9 1 . 12 . 11 4 11 21 Attach 68 | . 1 . 2 . 6 4 . 1 . . . 1 . 1 1 . . . . . . 3 4 4 5 5 . . 4 . 6 2 10 8 Detach 18 | . . . . . 6 1 1 . . . . . . . . . . . 1 . . 2 1 1 . . . . . . 2 . 2 1 Swap 38 | . 2 . . . . . . . . . . . . . . . 1 . . . . . . . . . . . 1 . 3 . 4 27 Drop 222 | . 12 2 13 2 26 4 . 6 1 . . 4 . . 2 . . . 5 . 1 16 12 11 8 14 . 1 13 . 15 2 19 33 Fire 1358 | . 69 14 92 19 49 22 27 64 47 22 12 17 19 19 32 20 11 34 42 . 17 40 42 59 57 21 16 24 72 10 61 33 60 215 Melee 1 | . . . . . . . . . . . . 1 . . . . . . . . . . . . . . . . . . . . . . Ram 2 | . . . . . . . . . . . . . . . . . . . . . . 1 . . . . . . . . . 1 . . Kick . | . . . . . . . . . . . . . . . . . . . . . . . . . . . . . . . . . . . Crush 53 | . 2 . 6 2 . 2 . 6 4 . . . . 3 . . . . 2 . . . . . . . . . . . . . 26 . Escape Stasis 68 | . . . . . . . . 11 . . . . . . . . . . . . . . . . 11 . . 13 . . 13 . 20 . Rewire 14 | . . . . . . . . . . . . . . . . . . . . . . . . . 12 . . . . . 1 . 1 . Trap . | . . . . . . . . . . . . . . . . . . . . . . . . . . . . . . . . . . . Miscellaneous 801 | . 14 7 57 . . 11 12 22 28 7 8 3 11 10 23 3 . 11 38 . . 50 86 59 45 3 5 8 24 . 52 15 47 142 Route ------- -11/Scrapyard -10/Materials (discovered 4 exits: *Mat x3 / [*Min]) -10/Mines (discovered 2 exits: *Mat x2) -9/Materials (discovered 5 exits: *Mat x3 / *Min x2) -9/Mines (discovered 2 exits: *Mat / *Exi) -9/Exiles -8/Mines -8/Materials (discovered 2 exits: *Fac / *Sto) -8/Storage -7/Factory (discovered 3 exits: *Fac / *Low x2) -7/Lower Caves -7/Lower Caves -7/Data Miner -6/Proximity Caves -6/Factory (discovered 3 exits: Fac / *Low x2) -6/Lower Caves -6/Lower Caves -6/Zion -5/Proximity Caves -5/Factory (discovered 4 exits: *Fac x3 / *Upp) -5/Upper Caves -5/Upper Caves (discovered 2 exits: *Fac / *War) -5/Warlord -4/Proximity Caves -4/Factory (discovered 4 exits: Res / *Upp x2 / *Arm) -4/Armory (discovered 2 exits: *Res / *Lab) -4/Lab -3/Research -3/Quarantine -3/Section 7 -2/Research (discovered 2 exits: *Tes x2) -2/Testing -1/Access -1/Command (discovered 3 exits: *Sur x2 / *Ac0) -1/Access_0 Subspace History --------- Turn | Location | Event 1 | -11/Scrapyard | Upgraded with Propulsion slot (x1) 1 | -11/Scrapyard | Upgraded with Utility slot (x1) 1 | -11/Scrapyard | Upgraded with Weapon slot (x1) 21 | -11/Scrapyard | Discovered new exit (range 15) 78 | -11/Scrapyard | Entered Materials 320 | -10/Materials | Build established: Mutant 381 | -10/Materials | Central database locked down 492 | -10/Materials | Discovered new exit (range 15) 621 | -10/Materials | Reached level 2 625 | -10/Materials | Discovered new exit (range 15) 648 | -10/Materials | Upgraded with Weapon slot (x1) 754 | -10/Materials | Discovered new exit (range 3) 899 | -10/Materials | Discovered new exit (range 11) 948 | -10/Materials | Build established: Tank 1021 | -10/Materials | Reached level 3 1785 | -10/Materials | Entered Mines 1789 | -10/Mines | Met a Derelict bent on vengeance 1811 | -10/Mines | Discovered new exit (range 5) 1902 | -10/Mines | Reached level 4 1934 | -10/Mines | Learned location of Zion (-6) 2359 | -10/Mines | Received a Rocket Launcher from a helpful Derelict 2568 | -10/Mines | Discovered new exit (range 8) 2666 | -10/Mines | Found a damaged Exp. Sensor Array with a note attached 2670 | -10/Mines | Found Prototype Device 2670 | -10/Mines | Identified Exp. Sensor Array 2762 | -10/Mines | Entered Materials 2764 | -9/Materials | Reached level 5 2766 | -9/Materials | Upgraded with Utility slot (x1) 2893 | -9/Materials | Discovered new exit (range 15) 3025 | -9/Materials | Central database locked down 3226 | -9/Materials | Discovered new exit (range 14) 3260 | -9/Materials | Build established: Gunner 3349 | -9/Materials | Reached level 6 3364 | -9/Materials | Upgraded with Weapon slot (x1) 3609 | -9/Materials | Discovered new exit (range 16) 3721 | -9/Materials | Reached level 7 3774 | -9/Materials | Repaired Med. Armor Plating 3950 | -9/Materials | Discovered new exit (range 16) 4076 | -9/Materials | Reached level 8 4205 | -9/Materials | Build established: Mutant 4712 | -9/Materials | Discovered new exit (range 7) 4733 | -9/Materials | Build established: Gunner 4795 | -9/Materials | Reached level 9 4958 | -9/Materials | Identified exit to Mines 5311 | -9/Materials | Entered Mines 5565 | -9/Mines | Discovered new exit (range 5) 5704 | -9/Mines | Deemed a non-threat by the Exiles lab entrance 5704 | -9/Mines | Discovered new exit (range 5) 5728 | -9/Mines | Entered Exiles 5774 | -9/Exiles | Met 8R-AWN 5795 | -9/Exiles | Met EX-HEX 5873 | -9/Exiles | Met EX-DEC 6011 | -9/Exiles | Met EX-BIN 6034 | -9/Exiles | Aligned with FarCom system 6036 | -9/Exiles | Given EX-Vault access code 6075 | -9/Exiles | Opened EX-Vault 6091 | -9/Exiles | Found XL Autogun Array 6101 | -9/Exiles | Found Latent Energy Streamer 6138 | -9/Exiles | Warned to stay clear of 0b10 Research branches 6231 | -9/Exiles | Attacked by the Exiles 6339 | -9/Exiles | Destroyed 8R-AWN 6421 | -9/Exiles | Found Prototype Ballistic Gun 6421 | -9/Exiles | Identified 8R-AWN's Boregun 6524 | -9/Exiles | Found Prototype Device 6524 | -9/Exiles | Identified AS-neutralizer No. 17b 6905 | -9/Exiles | Destroyed EX-DEC 6916 | -9/Exiles | Destroyed EX-HEX 6969 | -9/Exiles | Destroyed EX-BIN 7122 | -9/Exiles | Upgraded with Utility slot (x1) 7280 | -9/Exiles | Found Prototype Protection 7280 | -9/Exiles | Identified 8R-AWN's Armor/EX 7301 | -9/Exiles | Found Prototype Protection 7323 | -9/Exiles | Discovered new exit (range 11) 7342 | -9/Exiles | Stole two prototypes: Latent Energy Streamer, XL Autogun Array 7342 | -9/Exiles | Entered Mines 7344 | -8/Mines | Reached level 10 7358 | -8/Mines | Identified 8R-AWN's Armor/TH 7596 | -8/Mines | Build established: Scavenger-Gunner 7618 | -8/Mines | Discovered new exit (range 9) 7703 | -8/Mines | Reached level 11 7707 | -8/Mines | Upgraded with Utility slot (x2) 7795 | -8/Mines | Entered Materials 8002 | -8/Materials | Reached level 12 8004 | -8/Materials | Discovered new exit (range 10) 8148 | -8/Materials | Identified exit to Storage 8330 | -8/Materials | Entered Storage 8448 | -8/Storage | Reached level 13 9015 | -8/Storage | Found Prototype Launcher 9015 | -8/Storage | Identified Scatter Rocket Array 9066 | -8/Storage | Met a pair of Derelict thieves 9181 | -8/Storage | Destroyed 8 combat bots 9354 | -8/Storage | Reached level 14 9364 | -8/Storage | Discovered new exit (range 16) 9403 | -8/Storage | Entered Factory 9516 | -7/Factory | Reached level 15 9550 | -7/Factory | Identified exit to Lower Caves 9803 | -7/Factory | First assault squad dispatched 9911 | -7/Factory | Destroyed 8 combat bots 10350 | -7/Factory | Reached level 16 10497 | -7/Factory | Discovered new exit (range 4) 10622 | -7/Factory | Entered Lower Caves 10826 | -7/Lower Caves | Encountered a Warlord checkpoint 10915 | -7/Lower Caves | Learned Factory interactive machine intel 11185 | -7/Lower Caves | Discovered new exit (range 16) 11401 | -7/Lower Caves | Entered another Lower Caves area 11737 | -7/Lower Caves | Encountered a Warlord checkpoint 11766 | -7/Lower Caves | Learned Factory terminal intel 11768 | -7/Lower Caves | Spotted B-75 Beast 11787 | -7/Lower Caves | Destroyed B-75 Beast 12096 | -7/Lower Caves | Discovered new exit (range 3) 12102 | -7/Lower Caves | Entered Data Miner 12102 | -7/Data Miner | Discovered new exit (range 6) 12139 | -7/Data Miner | Met Data Miner 12192 | -7/Data Miner | Learned location of Section 7 (-3) 12192 | -7/Data Miner | Acquired the access code to Warlord's prototype stash 12211 | -7/Data Miner | Received God Mode back door access code from Data Miner 12241 | -7/Data Miner | Destroyed Data Miner 12245 | -7/Data Miner | Reached level 17 12245 | -7/Data Miner | Interfaced with the Data Conduit 12250 | -7/Data Miner | Found Prototype Hackware 12557 | -7/Data Miner | Entered Proximity Caves 12847 | -6/Proximity Caves | Reached level 18 13272 | -6/Proximity Caves | Learned location of 1 exit from Factory 13333 | -6/Proximity Caves | Discovered new exit (range 10) 13350 | -6/Proximity Caves | Entered Factory 13350 | -6/Factory | Upgraded with Utility slot (x1) 13350 | -6/Factory | Identified Deep Network Scanner 13351 | -6/Factory | Identified exit to Factory 13352 | -6/Factory | Loaded intel: 253 machine locations 13353 | -6/Factory | Loaded intel: 44 interactive machine locations 13354 | -6/Factory | Loaded intel: 19 terminal locations 13410 | -6/Factory | Identified exit to Lower Caves 13538 | -6/Factory | Spotted B-75 Beast 13548 | -6/Factory | Destroyed B-75 Beast 13656 | -6/Factory | Build established: Hacker-Gunner 13686 | -6/Factory | Reached level 19 13707 | -6/Factory | Allied Derelicts emerged from ambush trap array 13830 | -6/Factory | Entered Lower Caves 13830 | -6/Lower Caves | Accompanied by 3 allies 13838 | -6/Lower Caves | Spotted B-75 Beast 13857 | -6/Lower Caves | Destroyed B-75 Beast 14219 | -6/Lower Caves | Acquired the password to a Derelict Tinkerer's latest research 14220 | -6/Lower Caves | Upgraded with Weapon slot (x1) 14246 | -6/Lower Caves | Found Prototype Special Weapon 14387 | -6/Lower Caves | Encountered a Warlord checkpoint 14498 | -6/Lower Caves | Caught by Unaware searching for contraband prototypes 15013 | -6/Lower Caves | Attracted the attention of an 0b10 base 15047 | -6/Lower Caves | Learned location of 1 exit from Proximity Caves 15047 | -6/Lower Caves | Learned location of 1 exit from Factory 15047 | -6/Lower Caves | Learned 8 Factory zone layouts 15047 | -6/Lower Caves | Learned Armory security intel 15155 | -6/Lower Caves | Learned Factory garrison access intel 15167 | -6/Lower Caves | Discovered new exit (range 8) 15242 | -6/Lower Caves | Entered another Lower Caves area 15285 | -6/Lower Caves | Encountered a Warlord checkpoint 15544 | -6/Lower Caves | Reached level 20 15638 | -6/Lower Caves | Spotted AV-5LF(f) 15639 | -6/Lower Caves | Encountered a Master Thief 15639 | -6/Lower Caves | Spotted 5Z-MMJ(f) 15639 | -6/Lower Caves | Spotted NC-N70(f) 15640 | -6/Lower Caves | Encountered a Master Thief 15640 | -6/Lower Caves | Encountered a Master Thief 15640 | -6/Lower Caves | XL Autogun Array stolen by Master Thief 15641 | -6/Lower Caves | Latent Energy Streamer stolen by Master Thief 15645 | -6/Lower Caves | Spotted 5H-V5Y(f) 15646 | -6/Lower Caves | Encountered a Master Thief 15676 | -6/Lower Caves | Discovered new exit (range 5) 15685 | -6/Lower Caves | Entered Zion 15758 | -6/Zion | Discovered new exit (range 15) 15820 | -6/Zion | System corruption cleaned by Quarantine Array 15875 | -6/Zion | Learned 4 Factory zone layouts 15933 | -6/Zion | Build established: Hacker-Mutant 16111 | -6/Zion | Found Prototype Device 16195 | -6/Zion | Learned Factory garrison access intel 16405 | -6/Zion | Found Exp. Armor Integrity Analyzer 16616 | -6/Zion | Build established: Hacker-Gunner 17744 | -6/Zion | Attacked by Zionites 17809 | -6/Zion | 1C-UTU came to Zion's defense 17830 | -6/Zion | Destroyed 1C-UTU 17895 | -6/Zion | Entered Proximity Caves 17971 | -5/Proximity Caves | Spotted B-75 Beast 17985 | -5/Proximity Caves | Destroyed B-75 Beast 18159 | -5/Proximity Caves | Attracted the attention of an 0b10 checkpoint 18180 | -5/Proximity Caves | Reached level 21 18361 | -5/Proximity Caves | Entered Factory 18362 | -5/Factory | Identified exit to Upper Caves 18363 | -5/Factory | Identified exit to Factory 18365 | -5/Factory | Loaded intel: 227 machine locations 18366 | -5/Factory | Loaded intel: 4 garrison access locations 18682 | -5/Factory | Garrison activated, responded to threat 18687 | -5/Factory | Reached level 22 18709 | -5/Factory | Spotted B-75 Beast 18716 | -5/Factory | Destroyed B-75 Beast 18805 | -5/Factory | Garrison activated, responded to threat 18883 | -5/Factory | Discovered exit to Factory (range 14) 18899 | -5/Factory | Build established: Scavenger-Gunner 18998 | -5/Factory | Entered Upper Caves 19313 | -5/Upper Caves | Learned 8 Factory zone layouts 19668 | -5/Upper Caves | Discovered new exit (range 6) 19683 | -5/Upper Caves | Entered another Upper Caves area 19684 | -5/Upper Caves | Encountered a Warlord checkpoint 19753 | -5/Upper Caves | Discovered exit to Factory (range 6) 19780 | -5/Upper Caves | Spotted B-75 Beast 19785 | -5/Upper Caves | Destroyed B-75 Beast 20282 | -5/Upper Caves | Attracted the attention of an 0b10 checkpoint 20285 | -5/Upper Caves | Reached level 23 20330 | -5/Upper Caves | Discovered new exit (range 7) 20347 | -5/Upper Caves | Entered Warlord 20417 | -5/Warlord | System corruption cleaned by Quarantine Array 21155 | -5/Warlord | Visited the Vortex Lab 21164 | -5/Warlord | Warlord's base attacked by MAIN.C 21174 | -5/Warlord | Found Prototype Energy Gun 21174 | -5/Warlord | Identified Vortex Rifle 21177 | -5/Warlord | Found Vortex Rifle 21284 | -5/Warlord | Met Warlord 21303 | -5/Warlord | Opened Warlord's prototype stash 21326 | -5/Warlord | Upgraded with Power slot (x1) 21326 | -5/Warlord | Upgraded with Propulsion slot (x2) 21330 | -5/Warlord | Found Vortex Chain Reactor 21332 | -5/Warlord | Upgraded with Utility slot (x1) 21341 | -5/Warlord | Found Prototype Hackware 21341 | -5/Warlord | Identified Ghost Barrier 21348 | -5/Warlord | Found Exp. Cloaking Device 21514 | -5/Warlord | Warlord forces counterattacked 21523 | -5/Warlord | Found Prototype Ballistic Cannon 21523 | -5/Warlord | Identified Hvy. Autocannon 21616 | -5/Warlord | Spotted Striker 21622 | -5/Warlord | Spotted Executioner 21684 | -5/Warlord | Spotted Executioner 21696 | -5/Warlord | Destroyed Executioner 21724 | -5/Warlord | Discovered new exit (range 14) 21764 | -5/Warlord | Spotted Executioner 21764 | -5/Warlord | Spotted Executioner 21764 | -5/Warlord | Spotted Striker 21792 | -5/Warlord | Core integrity fell below 50% 21792 | -5/Warlord | Destroyed Striker 21799 | -5/Warlord | Destroyed Executioner 21802 | -5/Warlord | Destroyed Executioner 21830 | -5/Warlord | Destroyed 10 combat bots 21839 | -5/Warlord | Warlord base infiltrated, sounded retreat 21846 | -5/Warlord | Found Exp. Targeting Computer 21901 | -5/Warlord | Spotted Striker 21904 | -5/Warlord | Spotted Executioner 21924 | -5/Warlord | Destroyed Striker 21928 | -5/Warlord | Destroyed Executioner 21980 | -5/Warlord | Spotted Executioner 21980 | -5/Warlord | Spotted Striker 21980 | -5/Warlord | Spotted Striker 21992 | -5/Warlord | Core integrity fell below 20% 21993 | -5/Warlord | Entered Proximity Caves 21995 | -4/Proximity Caves | Reached level 24 22027 | -4/Proximity Caves | Learned Research garrison access intel 22367 | -4/Proximity Caves | Spotted B-86 Titan 22618 | -4/Proximity Caves | Attracted the attention of an 0b10 base 22637 | -4/Proximity Caves | Reached level 25 22667 | -4/Proximity Caves | Destroyed 11 combat bots 22699 | -4/Proximity Caves | Learned Extension emergency access door positions 22699 | -4/Proximity Caves | Learned Research security intel 22699 | -4/Proximity Caves | Learned Factory terminal intel 22739 | -4/Proximity Caves | Discovered exit to Factory (range 9) 22830 | -4/Proximity Caves | Entered Factory 22831 | -4/Factory | Identified exit to Upper Caves 22832 | -4/Factory | Identified exit to Research 22833 | -4/Factory | Loaded intel: 225 machine locations 22834 | -4/Factory | Loaded intel: 20 terminal locations 22835 | -4/Factory | Loaded intel: 4 garrison access locations 22880 | -4/Factory | Identified exit to Armory 22909 | -4/Factory | Garrison activated, responded to threat 23101 | -4/Factory | Reached level 26 23119 | -4/Factory | Garrison activated, responded to threat 23216 | -4/Factory | Destroyed 10 combat bots 23264 | -4/Factory | Garrison activated, responded to threat 23282 | -4/Factory | Identified Phasing AFG 23375 | -4/Factory | Build established: Hacker-Gunner 23492 | -4/Factory | Entered Armory 23494 | -4/Armory | Loaded intel: 89 machine locations 23511 | -4/Armory | Upgraded with Propulsion slot (x2) 23583 | -4/Armory | Found EM Disruption Field 23602 | -4/Armory | Reached level 27 23660 | -4/Armory | Destroyed 12 combat bots 23685 | -4/Armory | Upgraded with Utility slot (x1) 23691 | -4/Armory | Discovered exit to Research (range 5) 23742 | -4/Armory | First assault squad dispatched 23798 | -4/Armory | Destroyed 18 combat bots 23804 | -4/Armory | Build established: Hacker-Sprinter 23814 | -4/Armory | Spotted B-86 Titan 23822 | -4/Armory | Destroyed B-86 Titan 23878 | -4/Armory | Discovered new exit (range 3) 23962 | -4/Armory | Entered Lab 23962 | -4/Lab | Accompanied by 2 allies 23962 | -4/Lab | Discovered exit to Research (range 9) 23983 | -4/Lab | Hidden lab's door opened automatically 23983 | -4/Lab | Sensor layout match revealed 23984 | -4/Lab | Gained access to the hidden lab's interior 23984 | -4/Lab | Reached level 28 23985 | -4/Lab | Detected by scanners 23994 | -4/Lab | Confronted by A5 24025 | -4/Lab | Destroyed A5 24036 | -4/Lab | Found Prototype Energy Cannon 24036 | -4/Lab | Identified Warp Cannon 24039 | -4/Lab | Found Prototype Energy Gun 24039 | -4/Lab | Identified Tachyon Dispersion Ray 24042 | -4/Lab | Found Prototype Protection 24042 | -4/Lab | Identified Exp. Powered Armor 24046 | -4/Lab | Upgraded with Utility slot (x1) 24055 | -4/Lab | Found Alien Artifact 24055 | -4/Lab | Identified Core Regenerator 24055 | -4/Lab | Used Core Regenerator, restored core integrity (+30) 24061 | -4/Lab | Found Alien Artifact 24061 | -4/Lab | Identified Integrated Reactor 24061 | -4/Lab | Installed Integrated Reactor, increased core energy generation (+10) 24064 | -4/Lab | Found Alien Artifact 24073 | -4/Lab | Decrypted terminal 24073 | -4/Lab | Acquired modification code for an L2 power cell 24091 | -4/Lab | Found Deep Network Scanner 24100 | -4/Lab | Upgraded with Power slot (x1) 24112 | -4/Lab | Found Prototype Special Weapon 24124 | -4/Lab | Identified Gui. Remote Datajack 24168 | -4/Lab | Entered Research 24169 | -3/Research | Identified exit to Quarantine 24171 | -3/Research | Loaded intel: 114 machine locations 24172 | -3/Research | Loaded intel: 4 garrison access locations 24212 | -3/Research | Garrison activated, responded to threat 24294 | -3/Research | Entered Quarantine 24295 | -3/Quarantine | Loaded intel: 64 machine locations 24296 | -3/Quarantine | Reached level 29 24340 | -3/Quarantine | Build established: Wizard-Sprinter 24349 | -3/Quarantine | Identified Transdimensional Reconstructor 24392 | -3/Quarantine | Found Alien Artifact 24485 | -3/Quarantine | Spotted Fortress 24505 | -3/Quarantine | Discovered new exit (range 5) 24506 | -3/Quarantine | Entered Section 7 24507 | -3/Section 7 | Loaded intel: 150 machine locations 24515 | -3/Section 7 | Found Integrated Reactor 24515 | -3/Section 7 | Installed Integrated Reactor, increased core energy generation (+10) 24527 | -3/Section 7 | Found Integrated Reactor 24527 | -3/Section 7 | Installed Integrated Reactor, increased core energy generation (+10) 24619 | -3/Section 7 | Spotted Alpha 7 24650 | -3/Section 7 | Found Alien Artifact 24679 | -3/Section 7 | Identified Subatomic Replicator 24679 | -3/Section 7 | Identified Core Reset Matrix 24771 | -3/Section 7 | Spotted S7 Guard 24785 | -3/Section 7 | Destroyed S7 Guard 24796 | -3/Section 7 | Found Alien Artifact 24804 | -3/Section 7 | Spotted S7 Guard 24816 | -3/Section 7 | Identified Core Membrane 24816 | -3/Section 7 | Installed Core Membrane, gained immunity to corruption 24836 | -3/Section 7 | Intercept squad dispatched 24842 | -3/Section 7 | Spotted Tracker 24845 | -3/Section 7 | Destroyed Tracker 24850 | -3/Section 7 | Spotted Combat Programmer 24853 | -3/Section 7 | Reached level 30 24853 | -3/Section 7 | Destroyed Combat Programmer 24876 | -3/Section 7 | Discovered new exit (range 9) 24889 | -3/Section 7 | Found Alien Artifact 24889 | -3/Section 7 | Identified Integrated Dissipator 24889 | -3/Section 7 | Installed Integrated Dissipator, increased core heat dissipation (+20) 24936 | -3/Section 7 | Spotted Alpha 7 24950 | -3/Section 7 | Destroyed Alpha 7 24966 | -3/Section 7 | Destroyed Alpha 7 24997 | -3/Section 7 | Spotted B-99 Colossus 25016 | -3/Section 7 | Found Alien Artifact 25016 | -3/Section 7 | Identified LRC Boosters 25016 | -3/Section 7 | Installed LRC Boosters, increased mass support (+10) 25018 | -3/Section 7 | Found Alien Artifact 25018 | -3/Section 7 | Identified LRC Armor 25018 | -3/Section 7 | Installed LRC Armor, increased core integrity (+250) 25036 | -3/Section 7 | Found Alien Artifact 25036 | -3/Section 7 | Identified Integrity Redistributor 25036 | -3/Section 7 | Used Integrity Redistributor, redistributed integrity from core (-5) 25133 | -3/Section 7 | Entered Research 25133 | -2/Research | Warlord forces began assault on 0b10 25134 | -2/Research | Loaded intel: 99 machine locations 25148 | -2/Research | Identified exit to Testing 25220 | -2/Research | Reached level 31 25243 | -2/Research | Research machine network offline 25251 | -2/Research | Entered Testing 25252 | -2/Testing | Loaded intel: 74 machine locations 25257 | -2/Testing | Found Prototype Launcher 25257 | -2/Testing | Identified Z-bomb Delivery System 25272 | -2/Testing | Spotted PY-549RHORAWQ 25273 | -2/Testing | Rewired PY-549RHORAWQ 25298 | -2/Testing | Destroyed PY-549RHORAWQ 25339 | -2/Testing | Found Exp. Force Field 25467 | -2/Testing | Upgraded with Utility slot (x1) 25497 | -2/Testing | Found Prototype Ballistic Gun 25501 | -2/Testing | First assault squad dispatched 25524 | -2/Testing | Reached level 32 25562 | -2/Testing | Destroyed 7 combat bots 25564 | -2/Testing | Found Prototype Hackware 25564 | -2/Testing | Identified System Mapper 25592 | -2/Testing | Spotted PH-KVT9IF6SQW 25607 | -2/Testing | Destroyed PH-KVT9IF6SQW 25617 | -2/Testing | Found Exp. Phase Shifter 25622 | -2/Testing | Upgraded with Propulsion slot (x1) 25627 | -2/Testing | Found Zero-point Reactor 25666 | -2/Testing | Identified Hyp. Multirail 25676 | -2/Testing | Discovered new exit (range 11) 25678 | -2/Testing | Intercept squad dispatched 25678 | -2/Testing | Spotted Tracker 25679 | -2/Testing | Spotted Tracker 25681 | -2/Testing | Spotted Combat Programmer 25682 | -2/Testing | Destroyed Tracker 25683 | -2/Testing | Spotted Combat Programmer 25687 | -2/Testing | Destroyed Combat Programmer 25690 | -2/Testing | Destroyed Tracker 25693 | -2/Testing | Destroyed Combat Programmer 25772 | -2/Testing | Entered Access 25773 | -1/Access | Loaded intel: 94 machine locations 25774 | -1/Access | Reached level 33 25920 | -1/Access | Reached level 34 26023 | -1/Access | Repaired Broken Cmb. Linear Gravjet 26058 | -1/Access | Discovered new exit (range 8) 26061 | -1/Access | Used Subatomic Replicator to replicate Exp. Powered Armor 26068 | -1/Access | Entered Command 26069 | -1/Command | Loaded intel: 57 machine locations 26101 | -1/Command | Identified exit to Surface 26137 | -1/Command | Reached level 35 26189 | -1/Command | Disengaged cave seal 26190 | -1/Command | Welcomed Warlord to Command 26220 | -1/Command | Disengaged cave seal 26220 | -1/Command | Derelicts emerged from the dark tunnel 26258 | -1/Command | Spotted M Guard 26258 | -1/Command | Spotted M Guard 26258 | -1/Command | Spotted Combat Programmer 26272 | -1/Command | Spotted Combat Programmer 26276 | -1/Command | Destroyed Combat Programmer 26279 | -1/Command | Destroyed Combat Programmer 26302 | -1/Command | All MAIN.C guards destroyed 26307 | -1/Command | Found Zero-point Reactor 26356 | -1/Command | Found Exp. Targeting Computer 26364 | -1/Command | Found Ragnarok Missile Launcher 26368 | -1/Command | Warlord commented on Warlord statues 26445 | -1/Command | Met MAIN.C 26447 | -1/Command | Warlord shut down involuntarily 26463 | -1/Command | 0b10 Conduit disabled 26465 | -1/Command | Reached level 36 26468 | -1/Command | MAIN.C activated Command garrisons 26479 | -1/Command | Found Exp. Powered Armor 26740 | -1/Command | Build established: Scavenger-Sprinter 27883 | -1/Command | Destroyed B-99 Colossus 27959 | -1/Command | Spotted B-99 Colossus 28274 | -1/Command | Build established: Generator-Sprinter 28317 | -1/Command | Attacked by Warlord forces 28379 | -1/Command | Found Exp. Powered Armor 28392 | -1/Command | Found Exp. Targeting Computer 28437 | -1/Command | Warped through subspace to slip node 28437 | -1/Command | Discovered new exit (range 5) 28441 | -1/Command | Entered Access_0 28442 | -1/Access_0 | Loaded intel: 52 machine locations 28443 | -1/Access_0 | Reached level 37 28443 | -1/Access_0 | Met Architect 28443 | -1/Access_0 | Destroyed A8 with decrypted code from the hidden lab 28461 | -1/Access_0 | Architect warped through subspace 28501 | -1/Access_0 | Found Exp. Weapon Cycler 28508 | -1/Access_0 | Architect warped through subspace 28527 | -1/Access_0 | Spotted Enhanced Programmer 28530 | -1/Access_0 | Spotted Enhanced Programmer 28533 | -1/Access_0 | Destroyed Enhanced Programmer 28541 | -1/Access_0 | Destroyed Enhanced Programmer 28571 | -1/Access_0 | Architect warped through subspace 28597 | -1/Access_0 | Subspace Access Node disabled 28612 | -1/Access_0 | A6 warped into view 28616 | -1/Access_0 | Destroyed A6 with decrypted code from the hidden lab 28647 | -1/Access_0 | Subspace Access Node disabled 28662 | -1/Access_0 | Subspace Access Node disabled 28678 | -1/Access_0 | Spotted Enhanced Programmer 28690 | -1/Access_0 | Destroyed Enhanced Programmer 28695 | -1/Access_0 | Found Prototype Energy Gun 28696 | -1/Access_0 | Identified Enh. Gamma Rifle 28732 | -1/Access_0 | Spotted Enhanced Programmer 28737 | -1/Access_0 | Spotted Enhanced Programmer 28746 | -1/Access_0 | Destroyed Enhanced Programmer 28828 | -1/Access_0 | Spotted Enhanced Programmer 28852 | -1/Access_0 | Destroyed Enhanced Programmer 28865 | -1/Access_0 | Architect warped through subspace 28899 | -1/Access_0 | Subspace Access Node disabled 28950 | -1/Access_0 | Destroyed Enhanced Programmer 28983 | -1/Access_0 | Spotted Enhanced Programmer 28991 | -1/Access_0 | Destroyed Enhanced Programmer 29022 | -1/Access_0 | A4 warped into view 29043 | -1/Access_0 | Build established: Scavenger-Sprinter 29074 | -1/Access_0 | Destroyed A4 29142 | -1/Access_0 | Spotted Enhanced Programmer 29154 | -1/Access_0 | Destroyed Enhanced Programmer 29177 | -1/Access_0 | Found Prototype Device 29178 | -1/Access_0 | Identified Desublimator 29223 | -1/Access_0 | Spotted Enhanced Programmer 29231 | -1/Access_0 | Destroyed Enhanced Programmer 29292 | -1/Access_0 | Spotted Enhanced Programmer 29294 | -1/Access_0 | Destroyed Enhanced Programmer 29502 | -1/Access_0 | Found Enh. Gamma Rifle 29536 | -1/Access_0 | Destroyed A2 29537 | -1/Access_0 | Extracted Singularity Gate Test 138-C access codes from A2's data core 29541 | -1/Access_0 | Found Prototype Device 29541 | -1/Access_0 | Identified ST Field Compressor 29547 | -1/Access_0 | Found Prototype Protection 29547 | -1/Access_0 | Identified Hvy. Regenerative Plating 29688 | -1/Access_0 | A3 warped into view 29713 | -1/Access_0 | Destroyed A3 29716 | -1/Access_0 | Found Prototype Ballistic Gun 29716 | -1/Access_0 | Identified A3's Sniper Rifle 29748 | -1/Access_0 | Found ST Field Compressor 29803 | -1/Access_0 | Started Test 138-B, establishing a local singularity 29803 | -1/Access_0 | Reached level 38 29803 | -1/Access_0 | Started Test 138-C, cascade imminent 29803 | *** | Destroyed Tau Ceti IV! Last Messages --------------- 29792_ Reinforced Shell breached. 29792_ HV Slug penetrates Reinforced Shell. 29803_ Connecting with Gate Controls... 29803_ Current location identified: Access_0 >>Gate Test 138-A Running Singularity Gate diagnostics... All systems nominal. >>Gate Test 138-B Preparing Singularity Gate activation... Stable singularity established. >>Gate Test 138-C Initiating Test 138-C... Warning: Experimental formulas incomplete. Potential effects include instability. Repeat command to confirm test. >>Gate Test 138-C Initiating Test 138-C... Applying incomplete calculations.... INSTABILITY DETECTED, CASCADE IMMINENT. 29803_ Reached level 38. Map ----- +----------------------------------------------------+ | ????????????????## ##???????????????????????? | | ?????????????????###### #???????????????????????? | | ??????????????????????## ##??????????????????????? | | ???????????????????????# #??????????????????????? | | ?????################### #??????????????????????? | | ?????# #??????????????????????? | | ?????# ##??????????????????????? | | ?????# ############ #???????????????????????? | | ?????# #??????????# #???????????????????????? | | ???### #??????????# #???????????????????????? | | #### # ####???????# #???????????????????????? | | #???????# #???????????????????????? | | ## # #??###### ######??????????????????? | | #### #??#""""" """""#??????????????????? | | #### #####"""" """"##??????????????????? | | #### ###" "##??????????????????? | | ### ##"" ""#??????????????????? | | ## ##"" ""#??????????????????? | | # # #####" "##??????????????????? | | # # #???#" "#???????????????????? | | ## # #???#" "#???????????????????? | | ###### ##??#" "#???????????????????? | | ####" "##????????????????### | | # ##"" ""#????????????????# | | ##### ## ##"" ""#????????????##### | | ####" @ "##???????????## | | ###### #### #??#"""" A""#????????????# | | ?????# #??# #?#""""" """""#???????????? | | ?????# #??# #?###### ######?????????????? | | ?????# #??# #????### #??????###???###?????# | | ?????# #??# #??### #????###"#####"###????? | | ?????# #?## #### #????#"" """"" ""#?????## | | ?????# ###" # "*! ! ######" "#######" | | ?????# " ;!=! ! | | ?????###### ##; !! | | ??????????# ####! ### ####" "######"" | | ??????????# #??### ## #??#"" """"" ""#???? # | | ??????????# #????### #??###"#####"###???# ## | | ???????#### #??????## #????###???############ | | ??????## #?????### #####????????""""" # | | ???#### ####### ##????????????"!!!" | | """" ##############"!/!" | | ???" "" " !!! | | !!] ##### #############"!=!" | | ]!! ##???# #???????????""""" | | *!!" ###????# ## #???????????????### | | """" ???????# ## #?????????????????## ### | | ???## ?????? ## #??????????????????# ##?? | | ????# ?????? ## ##?????#????????????# #??? | | ????###?????######## ##??? #????????????# #??? | +----------------------------------------------------+ Best States ------------- Heat Dissipation 93 Energy Generation 120 Energy Capacity 950 Matter Stores 600 Matter Capacity 600 Sight Range 20 Robot Scan Range 30 Terrain Scan Density 10 Cloak Strength 4 Additional Mass Support 12 Armor Coverage 2600 Resistance: KI 15 Resistance: TH 90 Resistance: EX 90 Resistance: EM 50 Weapon Cycling 30 Phase Shifting 20 Evasion (%) 95 Targeting Accuracy 12 Armor Integrity Analysis 90 Recoil Reduction 2 Offensive Hacking 60 Defensive Hacking 25 Item Schematics ----------------- Combat Drone Bay | -7/Data Miner | Free Lgt. Regenerative Plating | -7/Data Miner | Free Tactical Coordination Suite | -7/Data Miner | Free Mni. Smartbomb Launcher | -7/Data Miner | Free Lrn. Sensor Array | -6/Factory | Hacked Cmb. Linear Gravjet | -2/Research | Hacked Zero-point Reactor | -2/Testing | Scanalyzed Robot Schematics ------------------ S-27 Virus | -7/Data Miner | Free G-50 Soldier | -7/Data Miner | Free G-67 Veteran | -7/Data Miner | Free L-41 Fighter | -7/Data Miner | Free X-72 Disruptor | -7/Data Miner | Free H-66 Slayer | -7/Data Miner | Free I-36 Angel | -7/Data Miner | Free Fabricated ------------ Nothing Alien Tech Used ----------------- Core Regenerator Integrated Reactor Core Membrane Integrated Dissipator LRC Boosters LRC Armor Integrity Redistributor Subatomic Replicator Transdimensional Reconstructor Achievements -------------- None Challenges ------------ None RPGLIKE | -11 -10 -10 -9 -9 -9 -8 -8 -8 -7 -7 -7 -7 -6 -6 -6 -6 -6 -5 -5 -5 -5 -5 -4 -4 -4 -4 -3 -3 -3 -2 -2 -1 -1 -1 --------- Run | Scr Mat Min Mat Min Exi Min Mat Sto Fac Low Low Dat Pro Fac Low Low Zio Pro Fac Upp Upp War Pro Fac Arm Lab Res Qua Sec Res Tes Acc Com Ac0 Levels Raised 37 | . 2 1 5 . . 2 1 2 2 . . 1 1 1 . 1 . 1 1 . 1 . 2 1 1 1 . 1 1 1 1 2 2 2 XP Earned 58580 | 3000 3910 950 7365 911 169 1775 1881 2559 3110 447 371 766 1657 1260 989 471 118 1657 1984 170 485 995 2198 2459 1171 929 934 615 1412 1641 1654 2694 3918 1955 XP Spent 56850 | 2700 3175 1450 5820 . 1100 3600 . 1575 . . . 1700 . 2000 1400 . . . . . . 4700 . 900 8450 4835 . . 700 . 5200 . 5100 2445 Upgrades 85 | 10 16 3 13 . 1 3 . 6 . . . 2 . 1 1 . . . . . . 4 . 2 5 4 . . 2 . 2 . 7 3 Power Slot 2 | . . . . . . . . . . . . . . . . . . . . . . 1 . . . 1 . . . . . . . . Propulsion Slot 6 | 1 . . . . . . . . . . . . . . . . . . . . . 2 . . 2 . . . . . 1 . . . Utility Slot 10 | 1 . . 1 . 1 2 . . . . . . . 1 . . . . . . . 1 . . 1 1 . . . . 1 . . . Weapon Slot 4 | 1 1 . 1 . . . . . . . . . . . 1 . . . . . . . . . . . . . . . . . . . Core Integrity 13 | . 11 . . . . . . . . . . . . . . . . . . . . . . . . 1 . . . . . . . 1 Heat Dissipation 7 | 5 . . 2 . . . . . . . . . . . . . . . . . . . . . . . . . . . . . . . Energy Generation 1 | . 1 . . . . . . . . . . . . . . . . . . . . . . . . . . . . . . . . . Matter Storage 6 | . . . . . . . . 6 . . . . . . . . . . . . . . . . . . . . . . . . . . Mass Support 4 | . . . . . . . . . . . . . . . . . . . . . . . . . . . . . 2 . . . 2 . Inventory Capacity 6 | 2 1 . 1 . . . . . . . . . . . . . . . . . . . . . 2 . . . . . . . . . Sight Range 4 | . . . . . . . . . . . . . . . . . . . . . . . . . . . . . . . . . 4 . Ranged Accuracy 9 | . . 2 2 . . . . . . . . 2 . . . . . . . . . . . . . 1 . . . . . . . 2 Hack Attack % 2 | . . . 1 . . . . . . . . . . . . . . . . . . . . 1 . . . . . . . . . . Hack Defense % 2 | . . . 1 . . . . . . . . . . . . . . . . . . . . 1 . . . . . . . . . . KI Resistance % 3 | . 2 1 . . . . . . . . . . . . . . . . . . . . . . . . . . . . . . . . TH Resistance % 2 | . . . 2 . . . . . . . . . . . . . . . . . . . . . . . . . . . . . . . KI Damage % 3 | . . . 1 . . 1 . . . . . . . . . . . . . . . . . . . . . . . . . . 1 . TH Damage % 1 | . . . 1 . . . . . . . . . . . . . . . . . . . . . . . . . . . . . . . Protomatter Created 9881 | . 143 88 503 . 13 98 86 562 482 216 207 347 194 118 349 . . 80 253 . . 403 686 550 716 117 152 54 345 50 717 122 501 1729 Integrity Restored 16122 | . 276 159 1074 . . 250 252 373 470 83 122 25 185 198 330 46 . 240 819 . . 1097 1889 1242 924 45 81 159 489 . 1128 312 938 2916 Core 9033 | . 276 159 710 . . 250 40 63 207 39 65 11 123 73 144 17 . 240 260 . . 732 1184 685 308 . 74 27 279 . 581 275 240 1971 Parts 7089 | . . . 364 . . . 212 310 263 44 57 14 62 125 186 29 . . 559 . . 365 705 557 616 45 7 132 210 . 547 37 698 945 Protomatter Decayed 13575 | . 45 35 135 . 11 14 . 250 365 218 223 300 130 50 370 40 . . 64 . . 1456 8 114 305 54 74 . 176 72 395 17 7929 725 Game ------ Seed LayeredThrusterBeamcaster Manual? 0 Play Time 04:14:56 Cumulative 489.4 hours Start 2021.07.03 @ 09:16:24 End 2021.07.03 @ 14:10:01 Sessions 1 Manual Loads 0 Difficulty Rogue Special Mode Winter2019/RPGLIKE Game No. 361 Rogue 354 Adventurer 0 Explorer 7 Win Type 5 Total 24 Types 8/3/9/1/0/1/0/1/1 Lore% 86 Gallery% 95 Achievement% 80 Wizard Run 0 Options --------- ASCII 0 Keyboard 0 Movement Numpad Keybinds 0 Fullscreen 1 Font 18/X11Bold Map View 76x50 Tactical HUD 1 Map Filters NONE Filters NONE Steam 1 RUN: 57bb7618-468d-4e0b-81f3-3d50e5624c3c